{"text_format":"1","workbook":"xlsx","n_sheets":7,"sheets":["Vložit","Spojené","Servis","Install","Předepisování","NSTD + Prodej","Pomocná"],"not_rendered":{"charts":0,"images":0,"macros":1,"external_links":0,"defined_names":8,"comments":0,"pivot_tables":0},"unopened":[],"bounds":{"document_bytes":16777216,"sheet_cells":100000,"rows_first":2000,"rows_last":500,"rows_between":2000,"halvings":0,"cell_chars":16384,"cell_head_chars":4096},"cells_cut":0,"cells_raw":0,"read":"whole","date_system":"1900"}

{"sheet":"Vložit","index":0,"n_rows":52,"n_cols":6,"rows_kept":52,"cut":false,"hidden":false,"merged":[]}
[]
["Číslo objednávky: 6668888 ","Zadáno: 04/05/2016/14:00 ","Čas příslibu od: 04/05/2016/14:00 ","Čas příslibu do: 04/05/2016/16:00"]
["Číslo smlouvy: ",9999,"Typ objednávky: ","Installation"]
["Jméno a příjmení: ","Jan Novak","Patro / Přípojný bod č.: ","2021-04-01"]
["Ulice: ","Pod mostem","Line 1: "]
["Č. pop. / č. orient.: ","1127 / 11 ","Line 2: "]
["Obec: ","Praha 7-Holešovice ","E-mail ","xx"]
["Telefon domů / zam.: ","xxx","Heslo: ","xxx"]
["Mobil: "]
["Instrukce: ","Prodej a NSTD"]
["Aktuální stav ","Naplánované úkony ","Typ zařízení"]
[null,"XXXX"]
["Technik: ","IFT P2 I01 ","Firma: ","xxx","Kód OZ: ","xxx"]
["Štítek by: ","2017-02-11","Štítek 3, Pole PED: ",null,"Trasový zes.: ","4.1.2.2"]
["Štítek 1: ","xxx","DC: ",4,"Region: ","Praha"]
["Štítek 2: ","B.OZN.\"XXI\" ","ON: ","2017-02-01","Sales route: ","SCE"]
["Pozn. k budově: ","xxxx"]
["dsdsdsdsds"]
["Číslo objednávky: 6666666","Zadáno: 04/05/2016/08:00 ","Čas příslibu od: 04/05/2016/08:00 ","Čas příslibu do: 04/05/2016/10:00"]
["Číslo smlouvy: ",11111,"Typ objednávky: ","Install Options"]
["Jméno a příjmení: ","Novak karel","Patro / Přípojný bod č.: ","/ 6"]
["Ulice: ","Pod mostem2","Line 1: "]
["Č. pop. / č. orient.: ","482 / 13 ","Line 2: "]
["Obec: ","Brno","E-mail ","xxx"]
["Telefon domů / zam.: ","xxxx","Heslo: ","xxx"]
["Mobil: "]
["Instrukce: ","Nestandart"]
["Aktuální stav ","Naplánované úkony ","Typ zařízení"]
[null,"Prodej neceho nekomu"]
["Technik: ","IFT P2 I02 ","Firma: ","xxxx","Kód OZ: ","xxx"]
["Štítek by: ","482/6 ","Štítek 3, Pole PED: ",",S ","Trasový zes.: ","23.2.4.2"]
["Štítek 1: ","xxxx","DC: ",23,"Region: "]
["Štítek 2: ",null,"ON: ","2.4A ","Sales route: ","SSE"]
["Pozn. k budově: ","xxxx"]
["sdsdsdasdasd"]
["Číslo objednávky: 99","Zadáno: 04/05/2016/16:00 ","Čas příslibu od: 04/05/2016/16:00 ","Čas příslibu do: 04/05/2016/18:00"]
["Číslo smlouvy: ",1,"Typ objednávky: ","Installation"]
["Jméno a příjmení: ","Novak jan","Patro / Přípojný bod č.: ","2013-01-01"]
["Ulice: ","pod mostem3","Line 1: "]
["Č. pop. / č. orient.: ","1179 / 37 ","Line 2: "]
["Obec: ","Kladno","E-mail ","xxx"]
["Telefon domů / zam.: ","xxx","Heslo: ","xxx"]
["Mobil: "]
["Instrukce: ","Nic a něco"]
["Aktuální stav ","Naplánované úkony ","Typ zařízení"]
[null,"NSTD"]
["Technik: ","IFT P2 I03 ","Firma: ","xxx","Kód OZ: ",794154]
["Štítek by: ","2017-01-13","Štítek 3, Pole PED: ",null,"Trasový zes.: ","2010-01-04"]
["Štítek 1: ","xxx","DC: ",4,"Region: ","Praha"]
["Štítek 2: ","LEVÉ SCHOD. ","ON: ","2017-10-01","Sales route: ","SCE"]
["Pozn. k budově: ","dddd"]
["dsdsdsdsds"]

{"sheet":"Spojené","index":1,"n_rows":0,"n_cols":0,"rows_kept":0,"cut":false,"hidden":false,"merged":[]}

{"sheet":"Servis","index":2,"n_rows":501,"n_cols":4,"rows_kept":501,"cut":false,"hidden":false,"merged":[]}
[{"$f":"SUBTOTAL(3,C2:C399)","v":0},null,"SERVISY",{"$f":"MID(Vložit!C2,18,10)","v":"04/05/2016"}]
[1]
[2]
[3]
[4]
[5]
[6]
[7]
[8]
[9]
[10]
[11]
[12]
[13]
[14]
[15]
[16]
[17]
[18]
[19]
[20]
[21]
[22]
[23]
[24]
[25]
[26]
[27]
[28]
[29]
[30]
[31]
[32]
[33]
[34]
[35]
[36]
[37]
[38]
[39]
[40]
[41]
[42]
[43]
[44]
[45]
[46]
[47]
[48]
[49]
[50]
[51]
[52]
[53]
[54]
[55]
[56]
[57]
[58]
[59]
[60]
[61]
[62]
[63]
[64]
[65]
[66]
[67]
[68]
[69]
[70]
[71]
[72]
[73]
[74]
[75]
[76]
[77]
[78]
[79]
[80]
[81]
[82]
[83]
[84]
[85]
[86]
[87]
[88]
[89]
[90]
[91]
[92]
[93]
[94]
[95]
[96]
[97]
[98]
[99]
[100]
[101]
[102]
[103]
[104]
[105]
[106]
[107]
[108]
[109]
[110]
[111]
[112]
[113]
[114]
[115]
[116]
[117]
[118]
[119]
[120]
[121]
[122]
[123]
[124]
[125]
[126]
[127]
[128]
[129]
[130]
[131]
[132]
[133]
[134]
[135]
[136]
[137]
[138]
[139]
[140]
[141]
[142]
[143]
[144]
[145]
[146]
[147]
[148]
[149]
[150]
[151]
[152]
[153]
[154]
[155]
[156]
[157]
[158]
[159]
[160]
[161]
[162]
[163]
[164]
[165]
[166]
[167]
[168]
[169]
[170]
[171]
[172]
[173]
[174]
[175]
[176]
[177]
[178]
[179]
[180]
[181]
[182]
[183]
[184]
[185]
[186]
[187]
[188]
[189]
[190]
[191]
[192]
[193]
[194]
[195]
[196]
[197]
[198]
[199]
[200]
[201]
[202]
[203]
[204]
[205]
[206]
[207]
[208]
[209]
[210]
[211]
[212]
[213]
[214]
[215]
[216]
[217]
[218]
[219]
[220]
[221]
[222]
[223]
[224]
[225]
[226]
[227]
[228]
[229]
[230]
[231]
[232]
[233]
[234]
[235]
[236]
[237]
[238]
[239]
[240]
[241]
[242]
[243]
[244]
[245]
[246]
[247]
[248]
[249]
[250]
[251]
[252]
[253]
[254]
[255]
[256]
[257]
[258]
[259]
[260]
[261]
[262]
[263]
[264]
[265]
[266]
[267]
[268]
[269]
[270]
[271]
[272]
[273]
[274]
[275]
[276]
[277]
[278]
[279]
[280]
[281]
[282]
[283]
[284]
[285]
[286]
[287]
[288]
[289]
[290]
[291]
[292]
[293]
[294]
[295]
[296]
[297]
[298]
[299]
[300]
[301]
[302]
[303]
[304]
[305]
[306]
[307]
[308]
[309]
[310]
[311]
[312]
[313]
[314]
[315]
[316]
[317]
[318]
[319]
[320]
[321]
[322]
[323]
[324]
[325]
[326]
[327]
[328]
[329]
[330]
[331]
[332]
[333]
[334]
[335]
[336]
[337]
[338]
[339]
[340]
[341]
[342]
[343]
[344]
[345]
[346]
[347]
[348]
[349]
[350]
[351]
[352]
[353]
[354]
[355]
[356]
[357]
[358]
[359]
[360]
[361]
[362]
[363]
[364]
[365]
[366]
[367]
[368]
[369]
[370]
[371]
[372]
[373]
[374]
[375]
[376]
[377]
[378]
[379]
[380]
[381]
[382]
[383]
[384]
[385]
[386]
[387]
[388]
[389]
[390]
[391]
[392]
[393]
[394]
[395]
[396]
[397]
[398]
[399]
[400]
[401]
[402]
[403]
[404]
[405]
[406]
[407]
[408]
[409]
[410]
[411]
[412]
[413]
[414]
[415]
[416]
[417]
[418]
[419]
[420]
[421]
[422]
[423]
[424]
[425]
[426]
[427]
[428]
[429]
[430]
[431]
[432]
[433]
[434]
[435]
[436]
[437]
[438]
[439]
[440]
[441]
[442]
[443]
[444]
[445]
[446]
[447]
[448]
[449]
[450]
[451]
[452]
[453]
[454]
[455]
[456]
[457]
[458]
[459]
[460]
[461]
[462]
[463]
[464]
[465]
[466]
[467]
[468]
[469]
[470]
[471]
[472]
[473]
[474]
[475]
[476]
[477]
[478]
[479]
[480]
[481]
[482]
[483]
[484]
[485]
[486]
[487]
[488]
[489]
[490]
[491]
[492]
[493]
[494]
[495]
[496]
[497]
[498]
[499]
[500]

{"sheet":"Install","index":3,"n_rows":501,"n_cols":14,"rows_kept":501,"cut":false,"hidden":false,"merged":[]}
[{"$f":"SUBTOTAL(3,C2:C399)","v":0},null,"INSTALACE",{"$f":"MID(Vložit!C2,18,10)","v":"04/05/2016"},null,null,null,null,null,null,"NSTD Instrukce","NSTD v úkonech","Prodej v Instrukcích","Prodej v úkonech"]
[1,null,null,null,null,null,null,null,null,null,{"$f":"CHOOSE((IFERROR(SEARCH(\"NSTD\",D2),0)>0)+(IFERROR(SEARCH(\"Nestan\",D2),0)>0)+1,\"NIC\",\"NSTD\",\"NSTD2\")","v":"NIC"},{"$f":"CHOOSE((IFERROR(SEARCH(\"NSTD\",E2),0)>0)+(IFERROR(SEARCH(\"Nestan\",E2),0)>0)+1,\"NIC\",\"NSTD\",\"NSTD2\")","v":"NIC"},{"$f":"CHOOSE((IFERROR(SEARCH(\"Prodej\",D2),0)>0)+1,\"NIC\",\"Prodej\")","v":"NIC"},{"$f":"CHOOSE((IFERROR(SEARCH(\"Prodej\",E2),0)>0)+1,\"NIC\",\"Prodej\")","v":"NIC"}]
[2,null,null,null,null,null,null,null,null,null,{"$f":"CHOOSE((IFERROR(SEARCH(\"NSTD\",D3),0)>0)+(IFERROR(SEARCH(\"Nestan\",D3),0)>0)+1,\"NIC\",\"NSTD\",\"NSTD2\")","v":"NIC"},"NIC",{"$f":"CHOOSE((IFERROR(SEARCH(\"Prodej\",D3),0)>0)+1,\"NIC\",\"Prodej\")","v":"NIC"},"NIC"]
[3,null,null,null,null,null,null,null,null,null,"NIC","NIC","NIC","NIC"]
[4,null,null,null,null,null,null,null,null,null,"NIC","NIC","NIC","NIC"]
[5,null,null,null,null,null,null,null,null,null,"NIC","NIC","NIC","NIC"]
[6,null,null,null,null,null,null,null,null,null,"NIC","NIC","NIC","NIC"]
[7,null,null,null,null,null,null,null,null,null,"NIC","NIC","NIC","NIC"]
[8,null,null,null,null,null,null,null,null,null,"NIC","NIC","NIC","NIC"]
[9,null,null,null,null,null,null,null,null,null,"NIC","NIC","NIC","NIC"]
[10,null,null,null,null,null,null,null,null,null,"NIC","NIC","NIC","NIC"]
[11,null,null,null,null,null,null,null,null,null,"NIC","NIC","NIC","NIC"]
[12,null,null,null,null,null,null,null,null,null,"NIC","NIC","NIC","NIC"]
[13,null,null,null,null,null,null,null,null,null,"NIC","NIC","NIC","NIC"]
[14,null,null,null,null,null,null,null,null,null,"NIC","NIC","NIC","NIC"]
[15,null,null,null,null,null,null,null,null,null,"NIC","NIC","NIC","NIC"]
[16,null,null,null,null,null,null,null,null,null,"NIC","NIC","NIC","NIC"]
[17,null,null,null,null,null,null,null,null,null,"NIC","NIC","NIC","NIC"]
[18,null,null,null,null,null,null,null,null,null,"NIC","NIC","NIC","NIC"]
[19,null,null,null,null,null,null,null,null,null,"NIC","NIC","NIC","NIC"]
[20,null,null,null,null,null,null,null,null,null,"NIC","NIC","NIC","NIC"]
[21,null,null,null,null,null,null,null,null,null,"NIC","NIC","NIC","NIC"]
[22,null,null,null,null,null,null,null,null,null,"NIC","NIC","NIC","NIC"]
[23,null,null,null,null,null,null,null,null,null,"NIC","NIC","NIC","NIC"]
[24,null,null,null,null,null,null,null,null,null,"NIC","NIC","NIC","NIC"]
[25,null,null,null,null,null,null,null,null,null,"NIC","NIC","NIC","NIC"]
[26,null,null,null,null,null,null,null,null,null,"NIC","NIC","NIC","NIC"]
[27,null,null,null,null,null,null,null,null,null,"NIC","NIC","NIC","NIC"]
[28,null,null,null,null,null,null,null,null,null,"NIC","NIC","NIC","NIC"]
[29,null,null,null,null,null,null,null,null,null,"NIC","NIC","NIC","NIC"]
[30,null,null,null,null,null,null,null,null,null,"NIC","NIC","NIC","NIC"]
[31,null,null,null,null,null,null,null,null,null,"NIC","NIC","NIC","NIC"]
[32,null,null,null,null,null,null,null,null,null,"NIC","NIC","NIC","NIC"]
[33,null,null,null,null,null,null,null,null,null,"NIC","NIC","NIC","NIC"]
[34,null,null,null,null,null,null,null,null,null,"NIC","NIC","NIC","NIC"]
[35,null,null,null,null,null,null,null,null,null,"NIC","NIC","NIC","NIC"]
[36,null,null,null,null,null,null,null,null,null,"NIC","NIC","NIC","NIC"]
[37,null,null,null,null,null,null,null,null,null,"NIC","NIC","NIC","NIC"]
[38,null,null,null,null,null,null,null,null,null,"NIC","NIC","NIC","NIC"]
[39,null,null,null,null,null,null,null,null,null,"NIC","NIC","NIC","NIC"]
[40,null,null,null,null,null,null,null,null,null,"NIC","NIC","NIC","NIC"]
[41,null,null,null,null,null,null,null,null,null,"NIC","NIC","NIC","NIC"]
[42,null,null,null,null,null,null,null,null,null,"NIC","NIC","NIC","NIC"]
[43,null,null,null,null,null,null,null,null,null,"NIC","NIC","NIC","NIC"]
[44,null,null,null,null,null,null,null,null,null,"NIC","NIC","NIC","NIC"]
[45,null,null,null,null,null,null,null,null,null,"NIC","NIC","NIC","NIC"]
[46,null,null,null,null,null,null,null,null,null,"NIC","NIC","NIC","NIC"]
[47,null,null,null,null,null,null,null,null,null,"NIC","NIC","NIC","NIC"]
[48,null,null,null,null,null,null,null,null,null,"NIC","NIC","NIC","NIC"]
[49,null,null,null,null,null,null,null,null,null,"NIC","NIC","NIC","NIC"]
[50,null,null,null,null,null,null,null,null,null,"NIC","NIC","NIC","NIC"]
[51,null,null,null,null,null,null,null,null,null,"NIC","NIC","NIC","NIC"]
[52,null,null,null,null,null,null,null,null,null,"NIC","NIC","NIC","NIC"]
[53,null,null,null,null,null,null,null,null,null,"NIC","NIC","NIC","NIC"]
[54,null,null,null,null,null,null,null,null,null,"NIC","NIC","NIC","NIC"]
[55,null,null,null,null,null,null,null,null,null,"NIC","NIC","NIC","NIC"]
[56,null,null,null,null,null,null,null,null,null,"NIC","NIC","NIC","NIC"]
[57,null,null,null,null,null,null,null,null,null,"NIC","NIC","NIC","NIC"]
[58,null,null,null,null,null,null,null,null,null,"NIC","NIC","NIC","NIC"]
[59,null,null,null,null,null,null,null,null,null,"NIC","NIC","NIC","NIC"]
[60,null,null,null,null,null,null,null,null,null,"NIC","NIC","NIC","NIC"]
[61,null,null,null,null,null,null,null,null,null,"NIC","NIC","NIC","NIC"]
[62,null,null,null,null,null,null,null,null,null,"NIC","NIC","NIC","NIC"]
[63,null,null,null,null,null,null,null,null,null,"NIC","NIC","NIC","NIC"]
[64,null,null,null,null,null,null,null,null,null,"NIC","NIC","NIC","NIC"]
[65,null,null,null,null,null,null,null,null,null,"NIC","NIC","NIC","NIC"]
[66,null,null,null,null,null,null,null,null,null,{"$f":"CHOOSE((IFERROR(SEARCH(\"NSTD\",D67),0)>0)+(IFERROR(SEARCH(\"Nestan\",D67),0)>0)+1,\"NIC\",\"NSTD\",\"NSTD2\")","v":"NIC"},"NIC",{"$f":"CHOOSE((IFERROR(SEARCH(\"Prodej\",D67),0)>0)+1,\"NIC\",\"Prodej\")","v":"NIC"},"NIC"]
[67,null,null,null,null,null,null,null,null,null,"NIC","NIC","NIC","NIC"]
[68,null,null,null,null,null,null,null,null,null,"NIC","NIC","NIC","NIC"]
[69,null,null,null,null,null,null,null,null,null,"NIC","NIC","NIC","NIC"]
[70,null,null,null,null,null,null,null,null,null,"NIC","NIC","NIC","NIC"]
[71,null,null,null,null,null,null,null,null,null,"NIC","NIC","NIC","NIC"]
[72,null,null,null,null,null,null,null,null,null,"NIC","NIC","NIC","NIC"]
[73,null,null,null,null,null,null,null,null,null,"NIC","NIC","NIC","NIC"]
[74,null,null,null,null,null,null,null,null,null,"NIC","NIC","NIC","NIC"]
[75,null,null,null,null,null,null,null,null,null,"NIC","NIC","NIC","NIC"]
[76,null,null,null,null,null,null,null,null,null,"NIC","NIC","NIC","NIC"]
[77,null,null,null,null,null,null,null,null,null,"NIC","NIC","NIC","NIC"]
[78,null,null,null,null,null,null,null,null,null,"NIC","NIC","NIC","NIC"]
[79,null,null,null,null,null,null,null,null,null,"NIC","NIC","NIC","NIC"]
[80,null,null,null,null,null,null,null,null,null,"NIC","NIC","NIC","NIC"]
[81,null,null,null,null,null,null,null,null,null,"NIC","NIC","NIC","NIC"]
[82,null,null,null,null,null,null,null,null,null,"NIC","NIC","NIC","NIC"]
[83,null,null,null,null,null,null,null,null,null,"NIC","NIC","NIC","NIC"]
[84,null,null,null,null,null,null,null,null,null,"NIC","NIC","NIC","NIC"]
[85,null,null,null,null,null,null,null,null,null,"NIC","NIC","NIC","NIC"]
[86,null,null,null,null,null,null,null,null,null,"NIC","NIC","NIC","NIC"]
[87,null,null,null,null,null,null,null,null,null,"NIC","NIC","NIC","NIC"]
[88,null,null,null,null,null,null,null,null,null,"NIC","NIC","NIC","NIC"]
[89,null,null,null,null,null,null,null,null,null,"NIC","NIC","NIC","NIC"]
[90,null,null,null,null,null,null,null,null,null,"NIC","NIC","NIC","NIC"]
[91,null,null,null,null,null,null,null,null,null,"NIC","NIC","NIC","NIC"]
[92,null,null,null,null,null,null,null,null,null,"NIC","NIC","NIC","NIC"]
[93,null,null,null,null,null,null,null,null,null,"NIC","NIC","NIC","NIC"]
[94,null,null,null,null,null,null,null,null,null,"NIC","NIC","NIC","NIC"]
[95,null,null,null,null,null,null,null,null,null,"NIC","NIC","NIC","NIC"]
[96,null,null,null,null,null,null,null,null,null,"NIC","NIC","NIC","NIC"]
[97,null,null,null,null,null,null,null,null,null,"NIC","NIC","NIC","NIC"]
[98,null,null,null,null,null,null,null,null,null,"NIC","NIC","NIC","NIC"]
[99,null,null,null,null,null,null,null,null,null,"NIC","NIC","NIC","NIC"]
[100,null,null,null,null,null,null,null,null,null,"NIC","NIC","NIC","NIC"]
[101,null,null,null,null,null,null,null,null,null,"NIC","NIC","NIC","NIC"]
[102,null,null,null,null,null,null,null,null,null,"NIC","NIC","NIC","NIC"]
[103,null,null,null,null,null,null,null,null,null,"NIC","NIC","NIC","NIC"]
[104,null,null,null,null,null,null,null,null,null,"NIC","NIC","NIC","NIC"]
[105,null,null,null,null,null,null,null,null,null,"NIC","NIC","NIC","NIC"]
[106,null,null,null,null,null,null,null,null,null,"NIC","NIC","NIC","NIC"]
[107,null,null,null,null,null,null,null,null,null,"NIC","NIC","NIC","NIC"]
[108,null,null,null,null,null,null,null,null,null,"NIC","NIC","NIC","NIC"]
[109,null,null,null,null,null,null,null,null,null,"NIC","NIC","NIC","NIC"]
[110,null,null,null,null,null,null,null,null,null,"NIC","NIC","NIC","NIC"]
[111,null,null,null,null,null,null,null,null,null,"NIC","NIC","NIC","NIC"]
[112,null,null,null,null,null,null,null,null,null,"NIC","NIC","NIC","NIC"]
[113,null,null,null,null,null,null,null,null,null,"NIC","NIC","NIC","NIC"]
[114,null,null,null,null,null,null,null,null,null,"NIC","NIC","NIC","NIC"]
[115,null,null,null,null,null,null,null,null,null,"NIC","NIC","NIC","NIC"]
[116,null,null,null,null,null,null,null,null,null,"NIC","NIC","NIC","NIC"]
[117,null,null,null,null,null,null,null,null,null,"NIC","NIC","NIC","NIC"]
[118,null,null,null,null,null,null,null,null,null,"NIC","NIC","NIC","NIC"]
[119,null,null,null,null,null,null,null,null,null,"NIC","NIC","NIC","NIC"]
[120,null,null,null,null,null,null,null,null,null,"NIC","NIC","NIC","NIC"]
[121,null,null,null,null,null,null,null,null,null,"NIC","NIC","NIC","NIC"]
[122,null,null,null,null,null,null,null,null,null,"NIC","NIC","NIC","NIC"]
[123,null,null,null,null,null,null,null,null,null,"NIC","NIC","NIC","NIC"]
[124,null,null,null,null,null,null,null,null,null,"NIC","NIC","NIC","NIC"]
[125,null,null,null,null,null,null,null,null,null,"NIC","NIC","NIC","NIC"]
[126,null,null,null,null,null,null,null,null,null,"NIC","NIC","NIC","NIC"]
[127,null,null,null,null,null,null,null,null,null,"NIC","NIC","NIC","NIC"]
[128,null,null,null,null,null,null,null,null,null,"NIC","NIC","NIC","NIC"]
[129,null,null,null,null,null,null,null,null,null,"NIC","NIC","NIC","NIC"]
[130,null,null,null,null,null,null,null,null,null,{"$f":"CHOOSE((IFERROR(SEARCH(\"NSTD\",D131),0)>0)+(IFERROR(SEARCH(\"Nestan\",D131),0)>0)+1,\"NIC\",\"NSTD\",\"NSTD2\")","v":"NIC"},"NIC",{"$f":"CHOOSE((IFERROR(SEARCH(\"Prodej\",D131),0)>0)+1,\"NIC\",\"Prodej\")","v":"NIC"},"NIC"]
[131,null,null,null,null,null,null,null,null,null,"NIC","NIC","NIC","NIC"]
[132,null,null,null,null,null,null,null,null,null,"NIC","NIC","NIC","NIC"]
[133,null,null,null,null,null,null,null,null,null,"NIC","NIC","NIC","NIC"]
[134,null,null,null,null,null,null,null,null,null,"NIC","NIC","NIC","NIC"]
[135,null,null,null,null,null,null,null,null,null,"NIC","NIC","NIC","NIC"]
[136,null,null,null,null,null,null,null,null,null,"NIC","NIC","NIC","NIC"]
[137,null,null,null,null,null,null,null,null,null,"NIC","NIC","NIC","NIC"]
[138,null,null,null,null,null,null,null,null,null,"NIC","NIC","NIC","NIC"]
[139,null,null,null,null,null,null,null,null,null,"NIC","NIC","NIC","NIC"]
[140,null,null,null,null,null,null,null,null,null,"NIC","NIC","NIC","NIC"]
[141,null,null,null,null,null,null,null,null,null,"NIC","NIC","NIC","NIC"]
[142,null,null,null,null,null,null,null,null,null,"NIC","NIC","NIC","NIC"]
[143,null,null,null,null,null,null,null,null,null,"NIC","NIC","NIC","NIC"]
[144,null,null,null,null,null,null,null,null,null,"NIC","NIC","NIC","NIC"]
[145,null,null,null,null,null,null,null,null,null,"NIC","NIC","NIC","NIC"]
[146,null,null,null,null,null,null,null,null,null,"NIC","NIC","NIC","NIC"]
[147,null,null,null,null,null,null,null,null,null,"NIC","NIC","NIC","NIC"]
[148,null,null,null,null,null,null,null,null,null,"NIC","NIC","NIC","NIC"]
[149,null,null,null,null,null,null,null,null,null,"NIC","NIC","NIC","NIC"]
[150,null,null,null,null,null,null,null,null,null,"NIC","NIC","NIC","NIC"]
[151,null,null,null,null,null,null,null,null,null,"NIC","NIC","NIC","NIC"]
[152,null,null,null,null,null,null,null,null,null,"NIC","NIC","NIC","NIC"]
[153,null,null,null,null,null,null,null,null,null,"NIC","NIC","NIC","NIC"]
[154,null,null,null,null,null,null,null,null,null,"NIC","NIC","NIC","NIC"]
[155,null,null,null,null,null,null,null,null,null,"NIC","NIC","NIC","NIC"]
[156,null,null,null,null,null,null,null,null,null,"NIC","NIC","NIC","NIC"]
[157,null,null,null,null,null,null,null,null,null,"NIC","NIC","NIC","NIC"]
[158,null,null,null,null,null,null,null,null,null,"NIC","NIC","NIC","NIC"]
[159,null,null,null,null,null,null,null,null,null,"NIC","NIC","NIC","NIC"]
[160,null,null,null,null,null,null,null,null,null,"NIC","NIC","NIC","NIC"]
[161,null,null,null,null,null,null,null,null,null,"NIC","NIC","NIC","NIC"]
[162,null,null,null,null,null,null,null,null,null,"NIC","NIC","NIC","NIC"]
[163,null,null,null,null,null,null,null,null,null,"NIC","NIC","NIC","NIC"]
[164,null,null,null,null,null,null,null,null,null,"NIC","NIC","NIC","NIC"]
[165,null,null,null,null,null,null,null,null,null,"NIC","NIC","NIC","NIC"]
[166,null,null,null,null,null,null,null,null,null,"NIC","NIC","NIC","NIC"]
[167,null,null,null,null,null,null,null,null,null,"NIC","NIC","NIC","NIC"]
[168,null,null,null,null,null,null,null,null,null,"NIC","NIC","NIC","NIC"]
[169,null,null,null,null,null,null,null,null,null,"NIC","NIC","NIC","NIC"]
[170,null,null,null,null,null,null,null,null,null,"NIC","NIC","NIC","NIC"]
[171,null,null,null,null,null,null,null,null,null,"NIC","NIC","NIC","NIC"]
[172,null,null,null,null,null,null,null,null,null,"NIC","NIC","NIC","NIC"]
[173,null,null,null,null,null,null,null,null,null,"NIC","NIC","NIC","NIC"]
[174,null,null,null,null,null,null,null,null,null,"NIC","NIC","NIC","NIC"]
[175,null,null,null,null,null,null,null,null,null,"NIC","NIC","NIC","NIC"]
[176,null,null,null,null,null,null,null,null,null,"NIC","NIC","NIC","NIC"]
[177,null,null,null,null,null,null,null,null,null,"NIC","NIC","NIC","NIC"]
[178,null,null,null,null,null,null,null,null,null,"NIC","NIC","NIC","NIC"]
[179,null,null,null,null,null,null,null,null,null,"NIC","NIC","NIC","NIC"]
[180,null,null,null,null,null,null,null,null,null,"NIC","NIC","NIC","NIC"]
[181,null,null,null,null,null,null,null,null,null,"NIC","NIC","NIC","NIC"]
[182,null,null,null,null,null,null,null,null,null,"NIC","NIC","NIC","NIC"]
[183,null,null,null,null,null,null,null,null,null,"NIC","NIC","NIC","NIC"]
[184,null,null,null,null,null,null,null,null,null,"NIC","NIC","NIC","NIC"]
[185,null,null,null,null,null,null,null,null,null,"NIC","NIC","NIC","NIC"]
[186,null,null,null,null,null,null,null,null,null,"NIC","NIC","NIC","NIC"]
[187,null,null,null,null,null,null,null,null,null,"NIC","NIC","NIC","NIC"]
[188,null,null,null,null,null,null,null,null,null,"NIC","NIC","NIC","NIC"]
[189,null,null,null,null,null,null,null,null,null,"NIC","NIC","NIC","NIC"]
[190,null,null,null,null,null,null,null,null,null,"NIC","NIC","NIC","NIC"]
[191,null,null,null,null,null,null,null,null,null,"NIC","NIC","NIC","NIC"]
[192,null,null,null,null,null,null,null,null,null,"NIC","NIC","NIC","NIC"]
[193,null,null,null,null,null,null,null,null,null,"NIC","NIC","NIC","NIC"]
[194,null,null,null,null,null,null,null,null,null,{"$f":"CHOOSE((IFERROR(SEARCH(\"NSTD\",D195),0)>0)+(IFERROR(SEARCH(\"Nestan\",D195),0)>0)+1,\"NIC\",\"NSTD\",\"NSTD2\")","v":"NIC"},"NIC",{"$f":"CHOOSE((IFERROR(SEARCH(\"Prodej\",D195),0)>0)+1,\"NIC\",\"Prodej\")","v":"NIC"},"NIC"]
[195,null,null,null,null,null,null,null,null,null,"NIC","NIC","NIC","NIC"]
[196,null,null,null,null,null,null,null,null,null,"NIC","NIC","NIC","NIC"]
[197,null,null,null,null,null,null,null,null,null,"NIC","NIC","NIC","NIC"]
[198,null,null,null,null,null,null,null,null,null,"NIC","NIC","NIC","NIC"]
[199,null,null,null,null,null,null,null,null,null,"NIC","NIC","NIC","NIC"]
[200,null,null,null,null,null,null,null,null,null,"NIC","NIC","NIC","NIC"]
[201,null,null,null,null,null,null,null,null,null,"NIC","NIC","NIC","NIC"]
[202,null,null,null,null,null,null,null,null,null,"NIC","NIC","NIC","NIC"]
[203,null,null,null,null,null,null,null,null,null,"NIC","NIC","NIC","NIC"]
[204,null,null,null,null,null,null,null,null,null,"NIC","NIC","NIC","NIC"]
[205,null,null,null,null,null,null,null,null,null,"NIC","NIC","NIC","NIC"]
[206,null,null,null,null,null,null,null,null,null,"NIC","NIC","NIC","NIC"]
[207,null,null,null,null,null,null,null,null,null,"NIC","NIC","NIC","NIC"]
[208,null,null,null,null,null,null,null,null,null,"NIC","NIC","NIC","NIC"]
[209,null,null,null,null,null,null,null,null,null,"NIC","NIC","NIC","NIC"]
[210,null,null,null,null,null,null,null,null,null,"NIC","NIC","NIC","NIC"]
[211,null,null,null,null,null,null,null,null,null,"NIC","NIC","NIC","NIC"]
[212,null,null,null,null,null,null,null,null,null,"NIC","NIC","NIC","NIC"]
[213,null,null,null,null,null,null,null,null,null,"NIC","NIC","NIC","NIC"]
[214,null,null,null,null,null,null,null,null,null,"NIC","NIC","NIC","NIC"]
[215,null,null,null,null,null,null,null,null,null,"NIC","NIC","NIC","NIC"]
[216,null,null,null,null,null,null,null,null,null,"NIC","NIC","NIC","NIC"]
[217,null,null,null,null,null,null,null,null,null,"NIC","NIC","NIC","NIC"]
[218,null,null,null,null,null,null,null,null,null,"NIC","NIC","NIC","NIC"]
[219,null,null,null,null,null,null,null,null,null,"NIC","NIC","NIC","NIC"]
[220,null,null,null,null,null,null,null,null,null,"NIC","NIC","NIC","NIC"]
[221,null,null,null,null,null,null,null,null,null,"NIC","NIC","NIC","NIC"]
[222,null,null,null,null,null,null,null,null,null,"NIC","NIC","NIC","NIC"]
[223,null,null,null,null,null,null,null,null,null,"NIC","NIC","NIC","NIC"]
[224,null,null,null,null,null,null,null,null,null,"NIC","NIC","NIC","NIC"]
[225,null,null,null,null,null,null,null,null,null,"NIC","NIC","NIC","NIC"]
[226,null,null,null,null,null,null,null,null,null,"NIC","NIC","NIC","NIC"]
[227,null,null,null,null,null,null,null,null,null,"NIC","NIC","NIC","NIC"]
[228,null,null,null,null,null,null,null,null,null,"NIC","NIC","NIC","NIC"]
[229,null,null,null,null,null,null,null,null,null,"NIC","NIC","NIC","NIC"]
[230,null,null,null,null,null,null,null,null,null,"NIC","NIC","NIC","NIC"]
[231,null,null,null,null,null,null,null,null,null,"NIC","NIC","NIC","NIC"]
[232,null,null,null,null,null,null,null,null,null,"NIC","NIC","NIC","NIC"]
[233,null,null,null,null,null,null,null,null,null,"NIC","NIC","NIC","NIC"]
[234,null,null,null,null,null,null,null,null,null,"NIC","NIC","NIC","NIC"]
[235,null,null,null,null,null,null,null,null,null,"NIC","NIC","NIC","NIC"]
[236,null,null,null,null,null,null,null,null,null,"NIC","NIC","NIC","NIC"]
[237,null,null,null,null,null,null,null,null,null,"NIC","NIC","NIC","NIC"]
[238,null,null,null,null,null,null,null,null,null,"NIC","NIC","NIC","NIC"]
[239,null,null,null,null,null,null,null,null,null,"NIC","NIC","NIC","NIC"]
[240,null,null,null,null,null,null,null,null,null,"NIC","NIC","NIC","NIC"]
[241,null,null,null,null,null,null,null,null,null,"NIC","NIC","NIC","NIC"]
[242,null,null,null,null,null,null,null,null,null,"NIC","NIC","NIC","NIC"]
[243,null,null,null,null,null,null,null,null,null,"NIC","NIC","NIC","NIC"]
[244,null,null,null,null,null,null,null,null,null,"NIC","NIC","NIC","NIC"]
[245,null,null,null,null,null,null,null,null,null,"NIC","NIC","NIC","NIC"]
[246,null,null,null,null,null,null,null,null,null,"NIC","NIC","NIC","NIC"]
[247,null,null,null,null,null,null,null,null,null,"NIC","NIC","NIC","NIC"]
[248,null,null,null,null,null,null,null,null,null,"NIC","NIC","NIC","NIC"]
[249,null,null,null,null,null,null,null,null,null,"NIC","NIC","NIC","NIC"]
[250,null,null,null,null,null,null,null,null,null,"NIC","NIC","NIC","NIC"]
[251,null,null,null,null,null,null,null,null,null,"NIC","NIC","NIC","NIC"]
[252,null,null,null,null,null,null,null,null,null,"NIC","NIC","NIC","NIC"]
[253,null,null,null,null,null,null,null,null,null,"NIC","NIC","NIC","NIC"]
[254,null,null,null,null,null,null,null,null,null,"NIC","NIC","NIC","NIC"]
[255,null,null,null,null,null,null,null,null,null,"NIC","NIC","NIC","NIC"]
[256,null,null,null,null,null,null,null,null,null,"NIC","NIC","NIC","NIC"]
[257,null,null,null,null,null,null,null,null,null,"NIC","NIC","NIC","NIC"]
[258,null,null,null,null,null,null,null,null,null,{"$f":"CHOOSE((IFERROR(SEARCH(\"NSTD\",D259),0)>0)+(IFERROR(SEARCH(\"Nestan\",D259),0)>0)+1,\"NIC\",\"NSTD\",\"NSTD2\")","v":"NIC"},"NIC",{"$f":"CHOOSE((IFERROR(SEARCH(\"Prodej\",D259),0)>0)+1,\"NIC\",\"Prodej\")","v":"NIC"},"NIC"]
[259,null,null,null,null,null,null,null,null,null,"NIC","NIC","NIC","NIC"]
[260,null,null,null,null,null,null,null,null,null,"NIC","NIC","NIC","NIC"]
[261,null,null,null,null,null,null,null,null,null,"NIC","NIC","NIC","NIC"]
[262,null,null,null,null,null,null,null,null,null,"NIC","NIC","NIC","NIC"]
[263,null,null,null,null,null,null,null,null,null,"NIC","NIC","NIC","NIC"]
[264,null,null,null,null,null,null,null,null,null,"NIC","NIC","NIC","NIC"]
[265,null,null,null,null,null,null,null,null,null,"NIC","NIC","NIC","NIC"]
[266,null,null,null,null,null,null,null,null,null,"NIC","NIC","NIC","NIC"]
[267,null,null,null,null,null,null,null,null,null,"NIC","NIC","NIC","NIC"]
[268,null,null,null,null,null,null,null,null,null,"NIC","NIC","NIC","NIC"]
[269,null,null,null,null,null,null,null,null,null,"NIC","NIC","NIC","NIC"]
[270,null,null,null,null,null,null,null,null,null,"NIC","NIC","NIC","NIC"]
[271,null,null,null,null,null,null,null,null,null,"NIC","NIC","NIC","NIC"]
[272,null,null,null,null,null,null,null,null,null,"NIC","NIC","NIC","NIC"]
[273,null,null,null,null,null,null,null,null,null,"NIC","NIC","NIC","NIC"]
[274,null,null,null,null,null,null,null,null,null,"NIC","NIC","NIC","NIC"]
[275,null,null,null,null,null,null,null,null,null,"NIC","NIC","NIC","NIC"]
[276,null,null,null,null,null,null,null,null,null,"NIC","NIC","NIC","NIC"]
[277,null,null,null,null,null,null,null,null,null,"NIC","NIC","NIC","NIC"]
[278,null,null,null,null,null,null,null,null,null,"NIC","NIC","NIC","NIC"]
[279,null,null,null,null,null,null,null,null,null,"NIC","NIC","NIC","NIC"]
[280,null,null,null,null,null,null,null,null,null,"NIC","NIC","NIC","NIC"]
[281,null,null,null,null,null,null,null,null,null,"NIC","NIC","NIC","NIC"]
[282,null,null,null,null,null,null,null,null,null,"NIC","NIC","NIC","NIC"]
[283,null,null,null,null,null,null,null,null,null,"NIC","NIC","NIC","NIC"]
[284,null,null,null,null,null,null,null,null,null,"NIC","NIC","NIC","NIC"]
[285,null,null,null,null,null,null,null,null,null,"NIC","NIC","NIC","NIC"]
[286,null,null,null,null,null,null,null,null,null,"NIC","NIC","NIC","NIC"]
[287,null,null,null,null,null,null,null,null,null,"NIC","NIC","NIC","NIC"]
[288,null,null,null,null,null,null,null,null,null,"NIC","NIC","NIC","NIC"]
[289,null,null,null,null,null,null,null,null,null,"NIC","NIC","NIC","NIC"]
[290,null,null,null,null,null,null,null,null,null,"NIC","NIC","NIC","NIC"]
[291,null,null,null,null,null,null,null,null,null,"NIC","NIC","NIC","NIC"]
[292,null,null,null,null,null,null,null,null,null,"NIC","NIC","NIC","NIC"]
[293,null,null,null,null,null,null,null,null,null,"NIC","NIC","NIC","NIC"]
[294,null,null,null,null,null,null,null,null,null,"NIC","NIC","NIC","NIC"]
[295,null,null,null,null,null,null,null,null,null,"NIC","NIC","NIC","NIC"]
[296,null,null,null,null,null,null,null,null,null,"NIC","NIC","NIC","NIC"]
[297,null,null,null,null,null,null,null,null,null,"NIC","NIC","NIC","NIC"]
[298,null,null,null,null,null,null,null,null,null,"NIC","NIC","NIC","NIC"]
[299,null,null,null,null,null,null,null,null,null,"NIC","NIC","NIC","NIC"]
[300,null,null,null,null,null,null,null,null,null,"NIC","NIC","NIC","NIC"]
[301,null,null,null,null,null,null,null,null,null,"NIC","NIC","NIC","NIC"]
[302,null,null,null,null,null,null,null,null,null,"NIC","NIC","NIC","NIC"]
[303,null,null,null,null,null,null,null,null,null,"NIC","NIC","NIC","NIC"]
[304,null,null,null,null,null,null,null,null,null,"NIC","NIC","NIC","NIC"]
[305,null,null,null,null,null,null,null,null,null,"NIC","NIC","NIC","NIC"]
[306,null,null,null,null,null,null,null,null,null,"NIC","NIC","NIC","NIC"]
[307,null,null,null,null,null,null,null,null,null,"NIC","NIC","NIC","NIC"]
[308,null,null,null,null,null,null,null,null,null,"NIC","NIC","NIC","NIC"]
[309,null,null,null,null,null,null,null,null,null,"NIC","NIC","NIC","NIC"]
[310,null,null,null,null,null,null,null,null,null,"NIC","NIC","NIC","NIC"]
[311,null,null,null,null,null,null,null,null,null,"NIC","NIC","NIC","NIC"]
[312,null,null,null,null,null,null,null,null,null,"NIC","NIC","NIC","NIC"]
[313,null,null,null,null,null,null,null,null,null,"NIC","NIC","NIC","NIC"]
[314,null,null,null,null,null,null,null,null,null,"NIC","NIC","NIC","NIC"]
[315,null,null,null,null,null,null,null,null,null,"NIC","NIC","NIC","NIC"]
[316,null,null,null,null,null,null,null,null,null,"NIC","NIC","NIC","NIC"]
[317,null,null,null,null,null,null,null,null,null,"NIC","NIC","NIC","NIC"]
[318,null,null,null,null,null,null,null,null,null,"NIC","NIC","NIC","NIC"]
[319,null,null,null,null,null,null,null,null,null,"NIC","NIC","NIC","NIC"]
[320,null,null,null,null,null,null,null,null,null,"NIC","NIC","NIC","NIC"]
[321,null,null,null,null,null,null,null,null,null,"NIC","NIC","NIC","NIC"]
[322,null,null,null,null,null,null,null,null,null,{"$f":"CHOOSE((IFERROR(SEARCH(\"NSTD\",D323),0)>0)+(IFERROR(SEARCH(\"Nestan\",D323),0)>0)+1,\"NIC\",\"NSTD\",\"NSTD2\")","v":"NIC"},"NIC",{"$f":"CHOOSE((IFERROR(SEARCH(\"Prodej\",D323),0)>0)+1,\"NIC\",\"Prodej\")","v":"NIC"},"NIC"]
[323,null,null,null,null,null,null,null,null,null,"NIC","NIC","NIC","NIC"]
[324,null,null,null,null,null,null,null,null,null,"NIC","NIC","NIC","NIC"]
[325,null,null,null,null,null,null,null,null,null,"NIC","NIC","NIC","NIC"]
[326,null,null,null,null,null,null,null,null,null,"NIC","NIC","NIC","NIC"]
[327,null,null,null,null,null,null,null,null,null,"NIC","NIC","NIC","NIC"]
[328,null,null,null,null,null,null,null,null,null,"NIC","NIC","NIC","NIC"]
[329,null,null,null,null,null,null,null,null,null,"NIC","NIC","NIC","NIC"]
[330,null,null,null,null,null,null,null,null,null,"NIC","NIC","NIC","NIC"]
[331,null,null,null,null,null,null,null,null,null,"NIC","NIC","NIC","NIC"]
[332,null,null,null,null,null,null,null,null,null,"NIC","NIC","NIC","NIC"]
[333,null,null,null,null,null,null,null,null,null,"NIC","NIC","NIC","NIC"]
[334,null,null,null,null,null,null,null,null,null,"NIC","NIC","NIC","NIC"]
[335,null,null,null,null,null,null,null,null,null,"NIC","NIC","NIC","NIC"]
[336,null,null,null,null,null,null,null,null,null,"NIC","NIC","NIC","NIC"]
[337,null,null,null,null,null,null,null,null,null,"NIC","NIC","NIC","NIC"]
[338,null,null,null,null,null,null,null,null,null,"NIC","NIC","NIC","NIC"]
[339,null,null,null,null,null,null,null,null,null,"NIC","NIC","NIC","NIC"]
[340,null,null,null,null,null,null,null,null,null,"NIC","NIC","NIC","NIC"]
[341,null,null,null,null,null,null,null,null,null,"NIC","NIC","NIC","NIC"]
[342,null,null,null,null,null,null,null,null,null,"NIC","NIC","NIC","NIC"]
[343,null,null,null,null,null,null,null,null,null,"NIC","NIC","NIC","NIC"]
[344,null,null,null,null,null,null,null,null,null,"NIC","NIC","NIC","NIC"]
[345,null,null,null,null,null,null,null,null,null,"NIC","NIC","NIC","NIC"]
[346,null,null,null,null,null,null,null,null,null,"NIC","NIC","NIC","NIC"]
[347,null,null,null,null,null,null,null,null,null,"NIC","NIC","NIC","NIC"]
[348,null,null,null,null,null,null,null,null,null,"NIC","NIC","NIC","NIC"]
[349,null,null,null,null,null,null,null,null,null,"NIC","NIC","NIC","NIC"]
[350,null,null,null,null,null,null,null,null,null,"NIC","NIC","NIC","NIC"]
[351,null,null,null,null,null,null,null,null,null,"NIC","NIC","NIC","NIC"]
[352,null,null,null,null,null,null,null,null,null,"NIC","NIC","NIC","NIC"]
[353,null,null,null,null,null,null,null,null,null,"NIC","NIC","NIC","NIC"]
[354,null,null,null,null,null,null,null,null,null,"NIC","NIC","NIC","NIC"]
[355,null,null,null,null,null,null,null,null,null,"NIC","NIC","NIC","NIC"]
[356,null,null,null,null,null,null,null,null,null,"NIC","NIC","NIC","NIC"]
[357,null,null,null,null,null,null,null,null,null,"NIC","NIC","NIC","NIC"]
[358,null,null,null,null,null,null,null,null,null,"NIC","NIC","NIC","NIC"]
[359,null,null,null,null,null,null,null,null,null,"NIC","NIC","NIC","NIC"]
[360,null,null,null,null,null,null,null,null,null,"NIC","NIC","NIC","NIC"]
[361,null,null,null,null,null,null,null,null,null,"NIC","NIC","NIC","NIC"]
[362,null,null,null,null,null,null,null,null,null,"NIC","NIC","NIC","NIC"]
[363,null,null,null,null,null,null,null,null,null,"NIC","NIC","NIC","NIC"]
[364,null,null,null,null,null,null,null,null,null,"NIC","NIC","NIC","NIC"]
[365,null,null,null,null,null,null,null,null,null,"NIC","NIC","NIC","NIC"]
[366,null,null,null,null,null,null,null,null,null,"NIC","NIC","NIC","NIC"]
[367,null,null,null,null,null,null,null,null,null,"NIC","NIC","NIC","NIC"]
[368,null,null,null,null,null,null,null,null,null,"NIC","NIC","NIC","NIC"]
[369,null,null,null,null,null,null,null,null,null,"NIC","NIC","NIC","NIC"]
[370,null,null,null,null,null,null,null,null,null,"NIC","NIC","NIC","NIC"]
[371,null,null,null,null,null,null,null,null,null,"NIC","NIC","NIC","NIC"]
[372,null,null,null,null,null,null,null,null,null,"NIC","NIC","NIC","NIC"]
[373,null,null,null,null,null,null,null,null,null,"NIC","NIC","NIC","NIC"]
[374,null,null,null,null,null,null,null,null,null,"NIC","NIC","NIC","NIC"]
[375,null,null,null,null,null,null,null,null,null,"NIC","NIC","NIC","NIC"]
[376,null,null,null,null,null,null,null,null,null,"NIC","NIC","NIC","NIC"]
[377,null,null,null,null,null,null,null,null,null,"NIC","NIC","NIC","NIC"]
[378,null,null,null,null,null,null,null,null,null,"NIC","NIC","NIC","NIC"]
[379,null,null,null,null,null,null,null,null,null,"NIC","NIC","NIC","NIC"]
[380,null,null,null,null,null,null,null,null,null,"NIC","NIC","NIC","NIC"]
[381,null,null,null,null,null,null,null,null,null,"NIC","NIC","NIC","NIC"]
[382,null,null,null,null,null,null,null,null,null,"NIC","NIC","NIC","NIC"]
[383,null,null,null,null,null,null,null,null,null,"NIC","NIC","NIC","NIC"]
[384,null,null,null,null,null,null,null,null,null,"NIC","NIC","NIC","NIC"]
[385,null,null,null,null,null,null,null,null,null,"NIC","NIC","NIC","NIC"]
[386,null,null,null,null,null,null,null,null,null,{"$f":"CHOOSE((IFERROR(SEARCH(\"NSTD\",D387),0)>0)+(IFERROR(SEARCH(\"Nestan\",D387),0)>0)+1,\"NIC\",\"NSTD\",\"NSTD2\")","v":"NIC"},"NIC",{"$f":"CHOOSE((IFERROR(SEARCH(\"Prodej\",D387),0)>0)+1,\"NIC\",\"Prodej\")","v":"NIC"},"NIC"]
[387,null,null,null,null,null,null,null,null,null,"NIC","NIC","NIC","NIC"]
[388,null,null,null,null,null,null,null,null,null,"NIC","NIC","NIC","NIC"]
[389,null,null,null,null,null,null,null,null,null,"NIC","NIC","NIC","NIC"]
[390,null,null,null,null,null,null,null,null,null,"NIC","NIC","NIC","NIC"]
[391,null,null,null,null,null,null,null,null,null,"NIC","NIC","NIC","NIC"]
[392,null,null,null,null,null,null,null,null,null,"NIC","NIC","NIC","NIC"]
[393,null,null,null,null,null,null,null,null,null,"NIC","NIC","NIC","NIC"]
[394,null,null,null,null,null,null,null,null,null,"NIC","NIC","NIC","NIC"]
[395,null,null,null,null,null,null,null,null,null,"NIC","NIC","NIC","NIC"]
[396,null,null,null,null,null,null,null,null,null,"NIC","NIC","NIC","NIC"]
[397,null,null,null,null,null,null,null,null,null,"NIC","NIC","NIC","NIC"]
[398,null,null,null,null,null,null,null,null,null,"NIC","NIC","NIC","NIC"]
[399,null,null,null,null,null,null,null,null,null,"NIC","NIC","NIC","NIC"]
[400,null,null,null,null,null,null,null,null,null,"NIC","NIC","NIC","NIC"]
[401,null,null,null,null,null,null,null,null,null,"NIC","NIC","NIC","NIC"]
[402,null,null,null,null,null,null,null,null,null,"NIC","NIC","NIC","NIC"]
[403,null,null,null,null,null,null,null,null,null,"NIC","NIC","NIC","NIC"]
[404,null,null,null,null,null,null,null,null,null,"NIC","NIC","NIC","NIC"]
[405,null,null,null,null,null,null,null,null,null,"NIC","NIC","NIC","NIC"]
[406,null,null,null,null,null,null,null,null,null,"NIC","NIC","NIC","NIC"]
[407,null,null,null,null,null,null,null,null,null,"NIC","NIC","NIC","NIC"]
[408,null,null,null,null,null,null,null,null,null,"NIC","NIC","NIC","NIC"]
[409,null,null,null,null,null,null,null,null,null,"NIC","NIC","NIC","NIC"]
[410,null,null,null,null,null,null,null,null,null,"NIC","NIC","NIC","NIC"]
[411,null,null,null,null,null,null,null,null,null,"NIC","NIC","NIC","NIC"]
[412,null,null,null,null,null,null,null,null,null,"NIC","NIC","NIC","NIC"]
[413,null,null,null,null,null,null,null,null,null,"NIC","NIC","NIC","NIC"]
[414,null,null,null,null,null,null,null,null,null,"NIC","NIC","NIC","NIC"]
[415,null,null,null,null,null,null,null,null,null,"NIC","NIC","NIC","NIC"]
[416,null,null,null,null,null,null,null,null,null,"NIC","NIC","NIC","NIC"]
[417,null,null,null,null,null,null,null,null,null,"NIC","NIC","NIC","NIC"]
[418,null,null,null,null,null,null,null,null,null,"NIC","NIC","NIC","NIC"]
[419,null,null,null,null,null,null,null,null,null,"NIC","NIC","NIC","NIC"]
[420,null,null,null,null,null,null,null,null,null,"NIC","NIC","NIC","NIC"]
[421,null,null,null,null,null,null,null,null,null,"NIC","NIC","NIC","NIC"]
[422,null,null,null,null,null,null,null,null,null,"NIC","NIC","NIC","NIC"]
[423,null,null,null,null,null,null,null,null,null,"NIC","NIC","NIC","NIC"]
[424,null,null,null,null,null,null,null,null,null,"NIC","NIC","NIC","NIC"]
[425,null,null,null,null,null,null,null,null,null,"NIC","NIC","NIC","NIC"]
[426,null,null,null,null,null,null,null,null,null,"NIC","NIC","NIC","NIC"]
[427,null,null,null,null,null,null,null,null,null,"NIC","NIC","NIC","NIC"]
[428,null,null,null,null,null,null,null,null,null,"NIC","NIC","NIC","NIC"]
[429,null,null,null,null,null,null,null,null,null,"NIC","NIC","NIC","NIC"]
[430,null,null,null,null,null,null,null,null,null,"NIC","NIC","NIC","NIC"]
[431,null,null,null,null,null,null,null,null,null,"NIC","NIC","NIC","NIC"]
[432,null,null,null,null,null,null,null,null,null,"NIC","NIC","NIC","NIC"]
[433,null,null,null,null,null,null,null,null,null,"NIC","NIC","NIC","NIC"]
[434,null,null,null,null,null,null,null,null,null,"NIC","NIC","NIC","NIC"]
[435,null,null,null,null,null,null,null,null,null,"NIC","NIC","NIC","NIC"]
[436,null,null,null,null,null,null,null,null,null,"NIC","NIC","NIC","NIC"]
[437,null,null,null,null,null,null,null,null,null,"NIC","NIC","NIC","NIC"]
[438,null,null,null,null,null,null,null,null,null,"NIC","NIC","NIC","NIC"]
[439,null,null,null,null,null,null,null,null,null,"NIC","NIC","NIC","NIC"]
[440,null,null,null,null,null,null,null,null,null,"NIC","NIC","NIC","NIC"]
[441,null,null,null,null,null,null,null,null,null,"NIC","NIC","NIC","NIC"]
[442,null,null,null,null,null,null,null,null,null,"NIC","NIC","NIC","NIC"]
[443,null,null,null,null,null,null,null,null,null,"NIC","NIC","NIC","NIC"]
[444,null,null,null,null,null,null,null,null,null,"NIC","NIC","NIC","NIC"]
[445,null,null,null,null,null,null,null,null,null,"NIC","NIC","NIC","NIC"]
[446,null,null,null,null,null,null,null,null,null,"NIC","NIC","NIC","NIC"]
[447,null,null,null,null,null,null,null,null,null,"NIC","NIC","NIC","NIC"]
[448,null,null,null,null,null,null,null,null,null,"NIC","NIC","NIC","NIC"]
[449,null,null,null,null,null,null,null,null,null,"NIC","NIC","NIC","NIC"]
[450,null,null,null,null,null,null,null,null,null,{"$f":"CHOOSE((IFERROR(SEARCH(\"NSTD\",D451),0)>0)+(IFERROR(SEARCH(\"Nestan\",D451),0)>0)+1,\"NIC\",\"NSTD\",\"NSTD2\")","v":"NIC"},"NIC",{"$f":"CHOOSE((IFERROR(SEARCH(\"Prodej\",D451),0)>0)+1,\"NIC\",\"Prodej\")","v":"NIC"},"NIC"]
[451,null,null,null,null,null,null,null,null,null,"NIC","NIC","NIC","NIC"]
[452,null,null,null,null,null,null,null,null,null,"NIC","NIC","NIC","NIC"]
[453,null,null,null,null,null,null,null,null,null,"NIC","NIC","NIC","NIC"]
[454,null,null,null,null,null,null,null,null,null,"NIC","NIC","NIC","NIC"]
[455,null,null,null,null,null,null,null,null,null,"NIC","NIC","NIC","NIC"]
[456,null,null,null,null,null,null,null,null,null,"NIC","NIC","NIC","NIC"]
[457,null,null,null,null,null,null,null,null,null,"NIC","NIC","NIC","NIC"]
[458,null,null,null,null,null,null,null,null,null,"NIC","NIC","NIC","NIC"]
[459,null,null,null,null,null,null,null,null,null,"NIC","NIC","NIC","NIC"]
[460,null,null,null,null,null,null,null,null,null,"NIC","NIC","NIC","NIC"]
[461,null,null,null,null,null,null,null,null,null,"NIC","NIC","NIC","NIC"]
[462,null,null,null,null,null,null,null,null,null,"NIC","NIC","NIC","NIC"]
[463,null,null,null,null,null,null,null,null,null,"NIC","NIC","NIC","NIC"]
[464,null,null,null,null,null,null,null,null,null,"NIC","NIC","NIC","NIC"]
[465,null,null,null,null,null,null,null,null,null,"NIC","NIC","NIC","NIC"]
[466,null,null,null,null,null,null,null,null,null,"NIC","NIC","NIC","NIC"]
[467,null,null,null,null,null,null,null,null,null,"NIC","NIC","NIC","NIC"]
[468,null,null,null,null,null,null,null,null,null,"NIC","NIC","NIC","NIC"]
[469,null,null,null,null,null,null,null,null,null,"NIC","NIC","NIC","NIC"]
[470,null,null,null,null,null,null,null,null,null,"NIC","NIC","NIC","NIC"]
[471,null,null,null,null,null,null,null,null,null,"NIC","NIC","NIC","NIC"]
[472,null,null,null,null,null,null,null,null,null,"NIC","NIC","NIC","NIC"]
[473,null,null,null,null,null,null,null,null,null,"NIC","NIC","NIC","NIC"]
[474,null,null,null,null,null,null,null,null,null,"NIC","NIC","NIC","NIC"]
[475,null,null,null,null,null,null,null,null,null,"NIC","NIC","NIC","NIC"]
[476,null,null,null,null,null,null,null,null,null,"NIC","NIC","NIC","NIC"]
[477,null,null,null,null,null,null,null,null,null,"NIC","NIC","NIC","NIC"]
[478,null,null,null,null,null,null,null,null,null,"NIC","NIC","NIC","NIC"]
[479,null,null,null,null,null,null,null,null,null,"NIC","NIC","NIC","NIC"]
[480,null,null,null,null,null,null,null,null,null,"NIC","NIC","NIC","NIC"]
[481,null,null,null,null,null,null,null,null,null,"NIC","NIC","NIC","NIC"]
[482,null,null,null,null,null,null,null,null,null,"NIC","NIC","NIC","NIC"]
[483,null,null,null,null,null,null,null,null,null,"NIC","NIC","NIC","NIC"]
[484,null,null,null,null,null,null,null,null,null,"NIC","NIC","NIC","NIC"]
[485,null,null,null,null,null,null,null,null,null,"NIC","NIC","NIC","NIC"]
[486,null,null,null,null,null,null,null,null,null,"NIC","NIC","NIC","NIC"]
[487,null,null,null,null,null,null,null,null,null,"NIC","NIC","NIC","NIC"]
[488,null,null,null,null,null,null,null,null,null,"NIC","NIC","NIC","NIC"]
[489,null,null,null,null,null,null,null,null,null,"NIC","NIC","NIC","NIC"]
[490,null,null,null,null,null,null,null,null,null,"NIC","NIC","NIC","NIC"]
[491,null,null,null,null,null,null,null,null,null,"NIC","NIC","NIC","NIC"]
[492,null,null,null,null,null,null,null,null,null,"NIC","NIC","NIC","NIC"]
[493,null,null,null,null,null,null,null,null,null,"NIC","NIC","NIC","NIC"]
[494,null,null,null,null,null,null,null,null,null,"NIC","NIC","NIC","NIC"]
[495,null,null,null,null,null,null,null,null,null,"NIC","NIC","NIC","NIC"]
[496,null,null,null,null,null,null,null,null,null,"NIC","NIC","NIC","NIC"]
[497,null,null,null,null,null,null,null,null,null,"NIC","NIC","NIC","NIC"]
[498,null,null,null,null,null,null,null,null,null,"NIC","NIC","NIC","NIC"]
[499,null,null,null,null,null,null,null,null,null,"NIC","NIC","NIC","NIC"]
[500,null,null,null,null,null,null,null,null,null,"NIC","NIC","NIC","NIC"]

{"sheet":"Předepisování","index":4,"n_rows":501,"n_cols":1,"rows_kept":501,"cut":false,"hidden":false,"merged":[]}
[{"$f":"SUBTOTAL(3,C2:C399)","v":0}]
[1]
[2]
[3]
[4]
[5]
[6]
[7]
[8]
[9]
[10]
[11]
[12]
[13]
[14]
[15]
[16]
[17]
[18]
[19]
[20]
[21]
[22]
[23]
[24]
[25]
[26]
[27]
[28]
[29]
[30]
[31]
[32]
[33]
[34]
[35]
[36]
[37]
[38]
[39]
[40]
[41]
[42]
[43]
[44]
[45]
[46]
[47]
[48]
[49]
[50]
[51]
[52]
[53]
[54]
[55]
[56]
[57]
[58]
[59]
[60]
[61]
[62]
[63]
[64]
[65]
[66]
[67]
[68]
[69]
[70]
[71]
[72]
[73]
[74]
[75]
[76]
[77]
[78]
[79]
[80]
[81]
[82]
[83]
[84]
[85]
[86]
[87]
[88]
[89]
[90]
[91]
[92]
[93]
[94]
[95]
[96]
[97]
[98]
[99]
[100]
[101]
[102]
[103]
[104]
[105]
[106]
[107]
[108]
[109]
[110]
[111]
[112]
[113]
[114]
[115]
[116]
[117]
[118]
[119]
[120]
[121]
[122]
[123]
[124]
[125]
[126]
[127]
[128]
[129]
[130]
[131]
[132]
[133]
[134]
[135]
[136]
[137]
[138]
[139]
[140]
[141]
[142]
[143]
[144]
[145]
[146]
[147]
[148]
[149]
[150]
[151]
[152]
[153]
[154]
[155]
[156]
[157]
[158]
[159]
[160]
[161]
[162]
[163]
[164]
[165]
[166]
[167]
[168]
[169]
[170]
[171]
[172]
[173]
[174]
[175]
[176]
[177]
[178]
[179]
[180]
[181]
[182]
[183]
[184]
[185]
[186]
[187]
[188]
[189]
[190]
[191]
[192]
[193]
[194]
[195]
[196]
[197]
[198]
[199]
[200]
[201]
[202]
[203]
[204]
[205]
[206]
[207]
[208]
[209]
[210]
[211]
[212]
[213]
[214]
[215]
[216]
[217]
[218]
[219]
[220]
[221]
[222]
[223]
[224]
[225]
[226]
[227]
[228]
[229]
[230]
[231]
[232]
[233]
[234]
[235]
[236]
[237]
[238]
[239]
[240]
[241]
[242]
[243]
[244]
[245]
[246]
[247]
[248]
[249]
[250]
[251]
[252]
[253]
[254]
[255]
[256]
[257]
[258]
[259]
[260]
[261]
[262]
[263]
[264]
[265]
[266]
[267]
[268]
[269]
[270]
[271]
[272]
[273]
[274]
[275]
[276]
[277]
[278]
[279]
[280]
[281]
[282]
[283]
[284]
[285]
[286]
[287]
[288]
[289]
[290]
[291]
[292]
[293]
[294]
[295]
[296]
[297]
[298]
[299]
[300]
[301]
[302]
[303]
[304]
[305]
[306]
[307]
[308]
[309]
[310]
[311]
[312]
[313]
[314]
[315]
[316]
[317]
[318]
[319]
[320]
[321]
[322]
[323]
[324]
[325]
[326]
[327]
[328]
[329]
[330]
[331]
[332]
[333]
[334]
[335]
[336]
[337]
[338]
[339]
[340]
[341]
[342]
[343]
[344]
[345]
[346]
[347]
[348]
[349]
[350]
[351]
[352]
[353]
[354]
[355]
[356]
[357]
[358]
[359]
[360]
[361]
[362]
[363]
[364]
[365]
[366]
[367]
[368]
[369]
[370]
[371]
[372]
[373]
[374]
[375]
[376]
[377]
[378]
[379]
[380]
[381]
[382]
[383]
[384]
[385]
[386]
[387]
[388]
[389]
[390]
[391]
[392]
[393]
[394]
[395]
[396]
[397]
[398]
[399]
[400]
[401]
[402]
[403]
[404]
[405]
[406]
[407]
[408]
[409]
[410]
[411]
[412]
[413]
[414]
[415]
[416]
[417]
[418]
[419]
[420]
[421]
[422]
[423]
[424]
[425]
[426]
[427]
[428]
[429]
[430]
[431]
[432]
[433]
[434]
[435]
[436]
[437]
[438]
[439]
[440]
[441]
[442]
[443]
[444]
[445]
[446]
[447]
[448]
[449]
[450]
[451]
[452]
[453]
[454]
[455]
[456]
[457]
[458]
[459]
[460]
[461]
[462]
[463]
[464]
[465]
[466]
[467]
[468]
[469]
[470]
[471]
[472]
[473]
[474]
[475]
[476]
[477]
[478]
[479]
[480]
[481]
[482]
[483]
[484]
[485]
[486]
[487]
[488]
[489]
[490]
[491]
[492]
[493]
[494]
[495]
[496]
[497]
[498]
[499]
[500]

{"sheet":"NSTD + Prodej","index":5,"n_rows":501,"n_cols":9,"rows_kept":501,"cut":false,"hidden":false,"merged":[]}
[{"$f":"SUBTOTAL(3,B2:B501)","v":0},null,"NSTD + Prodej",{"$f":"MID(Vložit!C2,18,10)","v":"04/05/2016"},"NSTD Instrukce","NSTD v úkonech","Prodej v Instrukcích","Prodej v úkonech","Tisknout"]
[1,null,null,null,{"$f":"CHOOSE((IFERROR(SEARCH(\"NSTD\",C2),0)>0)+(IFERROR(SEARCH(\"Nestan\",C2),0)>0)+1,\"NIC\",\"NSTD\")","v":"NIC"},{"$f":"CHOOSE((IFERROR(SEARCH(\"NSTD\",D2),0)>0)+(IFERROR(SEARCH(\"Nestan\",D2),0)>0)+1,\"NIC\",\"NSTD\",\"NSTD2\")","v":"NIC"},{"$f":"CHOOSE((IFERROR(SEARCH(\"Prodej\",C2),0)>0)+1,\"NIC\",\"Prodej\")","v":"NIC"},{"$f":"CHOOSE((IFERROR(SEARCH(\"Prodej\",D2),0)>0)+1,\"NIC\",\"Prodej\")","v":"NIC"},{"$f":"OR(\"NSTD\"=E2,\"NSTD\"=F2,\"Prodej\"=G2,\"Prodej\"=H2)","v":false}]
[2,null,null,null,{"$f":"CHOOSE((IFERROR(SEARCH(\"NSTD\",C3),0)>0)+(IFERROR(SEARCH(\"Nestan\",C3),0)>0)+1,\"NIC\",\"NSTD\",\"NSTD2\")","v":"NIC"},"NIC",{"$f":"CHOOSE((IFERROR(SEARCH(\"Prodej\",C3),0)>0)+1,\"NIC\",\"Prodej\")","v":"NIC"},"NIC",{"$f":"OR(\"NSTD\"=E3,\"NSTD\"=F3,\"Prodej\"=G3,\"Prodej\"=H3)","v":false}]
[3,null,null,null,"NIC","NIC","NIC","NIC",false]
[4,null,null,null,"NIC","NIC","NIC","NIC",false]
[5,null,null,null,"NIC","NIC","NIC","NIC",false]
[6,null,null,null,"NIC","NIC","NIC","NIC",false]
[7,null,null,null,"NIC","NIC","NIC","NIC",false]
[8,null,null,null,"NIC","NIC","NIC","NIC",false]
[9,null,null,null,"NIC","NIC","NIC","NIC",false]
[10,null,null,null,"NIC","NIC","NIC","NIC",false]
[11,null,null,null,"NIC","NIC","NIC","NIC",false]
[12,null,null,null,"NIC","NIC","NIC","NIC",false]
[13,null,null,null,"NIC","NIC","NIC","NIC",false]
[14,null,null,null,"NIC","NIC","NIC","NIC",false]
[15,null,null,null,"NIC","NIC","NIC","NIC",false]
[16,null,null,null,"NIC","NIC","NIC","NIC",false]
[17,null,null,null,"NIC","NIC","NIC","NIC",false]
[18,null,null,null,"NIC","NIC","NIC","NIC",false]
[19,null,null,null,"NIC","NIC","NIC","NIC",false]
[20,null,null,null,"NIC","NIC","NIC","NIC",false]
[21,null,null,null,"NIC","NIC","NIC","NIC",false]
[22,null,null,null,"NIC","NIC","NIC","NIC",false]
[23,null,null,null,"NIC","NIC","NIC","NIC",false]
[24,null,null,null,"NIC","NIC","NIC","NIC",false]
[25,null,null,null,"NIC","NIC","NIC","NIC",false]
[26,null,null,null,"NIC","NIC","NIC","NIC",false]
[27,null,null,null,"NIC","NIC","NIC","NIC",false]
[28,null,null,null,"NIC","NIC","NIC","NIC",false]
[29,null,null,null,"NIC","NIC","NIC","NIC",false]
[30,null,null,null,"NIC","NIC","NIC","NIC",false]
[31,null,null,null,"NIC","NIC","NIC","NIC",false]
[32,null,null,null,"NIC","NIC","NIC","NIC",false]
[33,null,null,null,"NIC","NIC","NIC","NIC",false]
[34,null,null,null,"NIC","NIC","NIC","NIC",false]
[35,null,null,null,"NIC","NIC","NIC","NIC",false]
[36,null,null,null,"NIC","NIC","NIC","NIC",false]
[37,null,null,null,"NIC","NIC","NIC","NIC",false]
[38,null,null,null,"NIC","NIC","NIC","NIC",false]
[39,null,null,null,"NIC","NIC","NIC","NIC",false]
[40,null,null,null,"NIC","NIC","NIC","NIC",false]
[41,null,null,null,"NIC","NIC","NIC","NIC",false]
[42,null,null,null,"NIC","NIC","NIC","NIC",false]
[43,null,null,null,"NIC","NIC","NIC","NIC",false]
[44,null,null,null,"NIC","NIC","NIC","NIC",false]
[45,null,null,null,"NIC","NIC","NIC","NIC",false]
[46,null,null,null,"NIC","NIC","NIC","NIC",false]
[47,null,null,null,"NIC","NIC","NIC","NIC",false]
[48,null,null,null,"NIC","NIC","NIC","NIC",false]
[49,null,null,null,"NIC","NIC","NIC","NIC",false]
[50,null,null,null,"NIC","NIC","NIC","NIC",false]
[51,null,null,null,"NIC","NIC","NIC","NIC",false]
[52,null,null,null,"NIC","NIC","NIC","NIC",false]
[53,null,null,null,"NIC","NIC","NIC","NIC",false]
[54,null,null,null,"NIC","NIC","NIC","NIC",false]
[55,null,null,null,"NIC","NIC","NIC","NIC",false]
[56,null,null,null,"NIC","NIC","NIC","NIC",false]
[57,null,null,null,"NIC","NIC","NIC","NIC",false]
[58,null,null,null,"NIC","NIC","NIC","NIC",false]
[59,null,null,null,"NIC","NIC","NIC","NIC",false]
[60,null,null,null,"NIC","NIC","NIC","NIC",false]
[61,null,null,null,"NIC","NIC","NIC","NIC",false]
[62,null,null,null,"NIC","NIC","NIC","NIC",false]
[63,null,null,null,"NIC","NIC","NIC","NIC",false]
[64,null,null,null,"NIC","NIC","NIC","NIC",false]
[65,null,null,null,"NIC","NIC","NIC","NIC",false]
[66,null,null,null,{"$f":"CHOOSE((IFERROR(SEARCH(\"NSTD\",C67),0)>0)+(IFERROR(SEARCH(\"Nestan\",C67),0)>0)+1,\"NIC\",\"NSTD\",\"NSTD2\")","v":"NIC"},"NIC",{"$f":"CHOOSE((IFERROR(SEARCH(\"Prodej\",C67),0)>0)+1,\"NIC\",\"Prodej\")","v":"NIC"},"NIC",{"$f":"OR(\"NSTD\"=E67,\"NSTD\"=F67,\"Prodej\"=G67,\"Prodej\"=H67)","v":false}]
[67,null,null,null,"NIC","NIC","NIC","NIC",false]
[68,null,null,null,"NIC","NIC","NIC","NIC",false]
[69,null,null,null,"NIC","NIC","NIC","NIC",false]
[70,null,null,null,"NIC","NIC","NIC","NIC",false]
[71,null,null,null,"NIC","NIC","NIC","NIC",false]
[72,null,null,null,"NIC","NIC","NIC","NIC",false]
[73,null,null,null,"NIC","NIC","NIC","NIC",false]
[74,null,null,null,"NIC","NIC","NIC","NIC",false]
[75,null,null,null,"NIC","NIC","NIC","NIC",false]
[76,null,null,null,"NIC","NIC","NIC","NIC",false]
[77,null,null,null,"NIC","NIC","NIC","NIC",false]
[78,null,null,null,"NIC","NIC","NIC","NIC",false]
[79,null,null,null,"NIC","NIC","NIC","NIC",false]
[80,null,null,null,"NIC","NIC","NIC","NIC",false]
[81,null,null,null,"NIC","NIC","NIC","NIC",false]
[82,null,null,null,"NIC","NIC","NIC","NIC",false]
[83,null,null,null,"NIC","NIC","NIC","NIC",false]
[84,null,null,null,"NIC","NIC","NIC","NIC",false]
[85,null,null,null,"NIC","NIC","NIC","NIC",false]
[86,null,null,null,"NIC","NIC","NIC","NIC",false]
[87,null,null,null,"NIC","NIC","NIC","NIC",false]
[88,null,null,null,"NIC","NIC","NIC","NIC",false]
[89,null,null,null,"NIC","NIC","NIC","NIC",false]
[90,null,null,null,"NIC","NIC","NIC","NIC",false]
[91,null,null,null,"NIC","NIC","NIC","NIC",false]
[92,null,null,null,"NIC","NIC","NIC","NIC",false]
[93,null,null,null,"NIC","NIC","NIC","NIC",false]
[94,null,null,null,"NIC","NIC","NIC","NIC",false]
[95,null,null,null,"NIC","NIC","NIC","NIC",false]
[96,null,null,null,"NIC","NIC","NIC","NIC",false]
[97,null,null,null,"NIC","NIC","NIC","NIC",false]
[98,null,null,null,"NIC","NIC","NIC","NIC",false]
[99,null,null,null,"NIC","NIC","NIC","NIC",false]
[100,null,null,null,"NIC","NIC","NIC","NIC",false]
[101,null,null,null,"NIC","NIC","NIC","NIC",false]
[102,null,null,null,"NIC","NIC","NIC","NIC",false]
[103,null,null,null,"NIC","NIC","NIC","NIC",false]
[104,null,null,null,"NIC","NIC","NIC","NIC",false]
[105,null,null,null,"NIC","NIC","NIC","NIC",false]
[106,null,null,null,"NIC","NIC","NIC","NIC",false]
[107,null,null,null,"NIC","NIC","NIC","NIC",false]
[108,null,null,null,"NIC","NIC","NIC","NIC",false]
[109,null,null,null,"NIC","NIC","NIC","NIC",false]
[110,null,null,null,"NIC","NIC","NIC","NIC",false]
[111,null,null,null,"NIC","NIC","NIC","NIC",false]
[112,null,null,null,"NIC","NIC","NIC","NIC",false]
[113,null,null,null,"NIC","NIC","NIC","NIC",false]
[114,null,null,null,"NIC","NIC","NIC","NIC",false]
[115,null,null,null,"NIC","NIC","NIC","NIC",false]
[116,null,null,null,"NIC","NIC","NIC","NIC",false]
[117,null,null,null,"NIC","NIC","NIC","NIC",false]
[118,null,null,null,"NIC","NIC","NIC","NIC",false]
[119,null,null,null,"NIC","NIC","NIC","NIC",false]
[120,null,null,null,"NIC","NIC","NIC","NIC",false]
[121,null,null,null,"NIC","NIC","NIC","NIC",false]
[122,null,null,null,"NIC","NIC","NIC","NIC",false]
[123,null,null,null,"NIC","NIC","NIC","NIC",false]
[124,null,null,null,"NIC","NIC","NIC","NIC",false]
[125,null,null,null,"NIC","NIC","NIC","NIC",false]
[126,null,null,null,"NIC","NIC","NIC","NIC",false]
[127,null,null,null,"NIC","NIC","NIC","NIC",false]
[128,null,null,null,"NIC","NIC","NIC","NIC",false]
[129,null,null,null,"NIC","NIC","NIC","NIC",false]
[130,null,null,null,{"$f":"CHOOSE((IFERROR(SEARCH(\"NSTD\",C131),0)>0)+(IFERROR(SEARCH(\"Nestan\",C131),0)>0)+1,\"NIC\",\"NSTD\",\"NSTD2\")","v":"NIC"},"NIC",{"$f":"CHOOSE((IFERROR(SEARCH(\"Prodej\",C131),0)>0)+1,\"NIC\",\"Prodej\")","v":"NIC"},"NIC",{"$f":"OR(\"NSTD\"=E131,\"NSTD\"=F131,\"Prodej\"=G131,\"Prodej\"=H131)","v":false}]
[131,null,null,null,"NIC","NIC","NIC","NIC",false]
[132,null,null,null,"NIC","NIC","NIC","NIC",false]
[133,null,null,null,"NIC","NIC","NIC","NIC",false]
[134,null,null,null,"NIC","NIC","NIC","NIC",false]
[135,null,null,null,"NIC","NIC","NIC","NIC",false]
[136,null,null,null,"NIC","NIC","NIC","NIC",false]
[137,null,null,null,"NIC","NIC","NIC","NIC",false]
[138,null,null,null,"NIC","NIC","NIC","NIC",false]
[139,null,null,null,"NIC","NIC","NIC","NIC",false]
[140,null,null,null,"NIC","NIC","NIC","NIC",false]
[141,null,null,null,"NIC","NIC","NIC","NIC",false]
[142,null,null,null,"NIC","NIC","NIC","NIC",false]
[143,null,null,null,"NIC","NIC","NIC","NIC",false]
[144,null,null,null,"NIC","NIC","NIC","NIC",false]
[145,null,null,null,"NIC","NIC","NIC","NIC",false]
[146,null,null,null,"NIC","NIC","NIC","NIC",false]
[147,null,null,null,"NIC","NIC","NIC","NIC",false]
[148,null,null,null,"NIC","NIC","NIC","NIC",false]
[149,null,null,null,"NIC","NIC","NIC","NIC",false]
[150,null,null,null,"NIC","NIC","NIC","NIC",false]
[151,null,null,null,"NIC","NIC","NIC","NIC",false]
[152,null,null,null,"NIC","NIC","NIC","NIC",false]
[153,null,null,null,"NIC","NIC","NIC","NIC",false]
[154,null,null,null,"NIC","NIC","NIC","NIC",false]
[155,null,null,null,"NIC","NIC","NIC","NIC",false]
[156,null,null,null,"NIC","NIC","NIC","NIC",false]
[157,null,null,null,"NIC","NIC","NIC","NIC",false]
[158,null,null,null,"NIC","NIC","NIC","NIC",false]
[159,null,null,null,"NIC","NIC","NIC","NIC",false]
[160,null,null,null,"NIC","NIC","NIC","NIC",false]
[161,null,null,null,"NIC","NIC","NIC","NIC",false]
[162,null,null,null,"NIC","NIC","NIC","NIC",false]
[163,null,null,null,"NIC","NIC","NIC","NIC",false]
[164,null,null,null,"NIC","NIC","NIC","NIC",false]
[165,null,null,null,"NIC","NIC","NIC","NIC",false]
[166,null,null,null,"NIC","NIC","NIC","NIC",false]
[167,null,null,null,"NIC","NIC","NIC","NIC",false]
[168,null,null,null,"NIC","NIC","NIC","NIC",false]
[169,null,null,null,"NIC","NIC","NIC","NIC",false]
[170,null,null,null,"NIC","NIC","NIC","NIC",false]
[171,null,null,null,"NIC","NIC","NIC","NIC",false]
[172,null,null,null,"NIC","NIC","NIC","NIC",false]
[173,null,null,null,"NIC","NIC","NIC","NIC",false]
[174,null,null,null,"NIC","NIC","NIC","NIC",false]
[175,null,null,null,"NIC","NIC","NIC","NIC",false]
[176,null,null,null,"NIC","NIC","NIC","NIC",false]
[177,null,null,null,"NIC","NIC","NIC","NIC",false]
[178,null,null,null,"NIC","NIC","NIC","NIC",false]
[179,null,null,null,"NIC","NIC","NIC","NIC",false]
[180,null,null,null,"NIC","NIC","NIC","NIC",false]
[181,null,null,null,"NIC","NIC","NIC","NIC",false]
[182,null,null,null,"NIC","NIC","NIC","NIC",false]
[183,null,null,null,"NIC","NIC","NIC","NIC",false]
[184,null,null,null,"NIC","NIC","NIC","NIC",false]
[185,null,null,null,"NIC","NIC","NIC","NIC",false]
[186,null,null,null,"NIC","NIC","NIC","NIC",false]
[187,null,null,null,"NIC","NIC","NIC","NIC",false]
[188,null,null,null,"NIC","NIC","NIC","NIC",false]
[189,null,null,null,"NIC","NIC","NIC","NIC",false]
[190,null,null,null,"NIC","NIC","NIC","NIC",false]
[191,null,null,null,"NIC","NIC","NIC","NIC",false]
[192,null,null,null,"NIC","NIC","NIC","NIC",false]
[193,null,null,null,"NIC","NIC","NIC","NIC",false]
[194,null,null,null,{"$f":"CHOOSE((IFERROR(SEARCH(\"NSTD\",C195),0)>0)+(IFERROR(SEARCH(\"Nestan\",C195),0)>0)+1,\"NIC\",\"NSTD\",\"NSTD2\")","v":"NIC"},"NIC",{"$f":"CHOOSE((IFERROR(SEARCH(\"Prodej\",C195),0)>0)+1,\"NIC\",\"Prodej\")","v":"NIC"},"NIC",{"$f":"OR(\"NSTD\"=E195,\"NSTD\"=F195,\"Prodej\"=G195,\"Prodej\"=H195)","v":false}]
[195,null,null,null,"NIC","NIC","NIC","NIC",false]
[196,null,null,null,"NIC","NIC","NIC","NIC",false]
[197,null,null,null,"NIC","NIC","NIC","NIC",false]
[198,null,null,null,"NIC","NIC","NIC","NIC",false]
[199,null,null,null,"NIC","NIC","NIC","NIC",false]
[200,null,null,null,"NIC","NIC","NIC","NIC",false]
[201,null,null,null,"NIC","NIC","NIC","NIC",false]
[202,null,null,null,"NIC","NIC","NIC","NIC",false]
[203,null,null,null,"NIC","NIC","NIC","NIC",false]
[204,null,null,null,"NIC","NIC","NIC","NIC",false]
[205,null,null,null,"NIC","NIC","NIC","NIC",false]
[206,null,null,null,"NIC","NIC","NIC","NIC",false]
[207,null,null,null,"NIC","NIC","NIC","NIC",false]
[208,null,null,null,"NIC","NIC","NIC","NIC",false]
[209,null,null,null,"NIC","NIC","NIC","NIC",false]
[210,null,null,null,"NIC","NIC","NIC","NIC",false]
[211,null,null,null,"NIC","NIC","NIC","NIC",false]
[212,null,null,null,"NIC","NIC","NIC","NIC",false]
[213,null,null,null,"NIC","NIC","NIC","NIC",false]
[214,null,null,null,"NIC","NIC","NIC","NIC",false]
[215,null,null,null,"NIC","NIC","NIC","NIC",false]
[216,null,null,null,"NIC","NIC","NIC","NIC",false]
[217,null,null,null,"NIC","NIC","NIC","NIC",false]
[218,null,null,null,"NIC","NIC","NIC","NIC",false]
[219,null,null,null,"NIC","NIC","NIC","NIC",false]
[220,null,null,null,"NIC","NIC","NIC","NIC",false]
[221,null,null,null,"NIC","NIC","NIC","NIC",false]
[222,null,null,null,"NIC","NIC","NIC","NIC",false]
[223,null,null,null,"NIC","NIC","NIC","NIC",false]
[224,null,null,null,"NIC","NIC","NIC","NIC",false]
[225,null,null,null,"NIC","NIC","NIC","NIC",false]
[226,null,null,null,"NIC","NIC","NIC","NIC",false]
[227,null,null,null,"NIC","NIC","NIC","NIC",false]
[228,null,null,null,"NIC","NIC","NIC","NIC",false]
[229,null,null,null,"NIC","NIC","NIC","NIC",false]
[230,null,null,null,"NIC","NIC","NIC","NIC",false]
[231,null,null,null,"NIC","NIC","NIC","NIC",false]
[232,null,null,null,"NIC","NIC","NIC","NIC",false]
[233,null,null,null,"NIC","NIC","NIC","NIC",false]
[234,null,null,null,"NIC","NIC","NIC","NIC",false]
[235,null,null,null,"NIC","NIC","NIC","NIC",false]
[236,null,null,null,"NIC","NIC","NIC","NIC",false]
[237,null,null,null,"NIC","NIC","NIC","NIC",false]
[238,null,null,null,"NIC","NIC","NIC","NIC",false]
[239,null,null,null,"NIC","NIC","NIC","NIC",false]
[240,null,null,null,"NIC","NIC","NIC","NIC",false]
[241,null,null,null,"NIC","NIC","NIC","NIC",false]
[242,null,null,null,"NIC","NIC","NIC","NIC",false]
[243,null,null,null,"NIC","NIC","NIC","NIC",false]
[244,null,null,null,"NIC","NIC","NIC","NIC",false]
[245,null,null,null,"NIC","NIC","NIC","NIC",false]
[246,null,null,null,"NIC","NIC","NIC","NIC",false]
[247,null,null,null,"NIC","NIC","NIC","NIC",false]
[248,null,null,null,"NIC","NIC","NIC","NIC",false]
[249,null,null,null,"NIC","NIC","NIC","NIC",false]
[250,null,null,null,"NIC","NIC","NIC","NIC",false]
[251,null,null,null,"NIC","NIC","NIC","NIC",false]
[252,null,null,null,"NIC","NIC","NIC","NIC",false]
[253,null,null,null,"NIC","NIC","NIC","NIC",false]
[254,null,null,null,"NIC","NIC","NIC","NIC",false]
[255,null,null,null,"NIC","NIC","NIC","NIC",false]
[256,null,null,null,"NIC","NIC","NIC","NIC",false]
[257,null,null,null,"NIC","NIC","NIC","NIC",false]
[258,null,null,null,{"$f":"CHOOSE((IFERROR(SEARCH(\"NSTD\",C259),0)>0)+(IFERROR(SEARCH(\"Nestan\",C259),0)>0)+1,\"NIC\",\"NSTD\",\"NSTD2\")","v":"NIC"},"NIC",{"$f":"CHOOSE((IFERROR(SEARCH(\"Prodej\",C259),0)>0)+1,\"NIC\",\"Prodej\")","v":"NIC"},"NIC",{"$f":"OR(\"NSTD\"=E259,\"NSTD\"=F259,\"Prodej\"=G259,\"Prodej\"=H259)","v":false}]
[259,null,null,null,"NIC","NIC","NIC","NIC",false]
[260,null,null,null,"NIC","NIC","NIC","NIC",false]
[261,null,null,null,"NIC","NIC","NIC","NIC",false]
[262,null,null,null,"NIC","NIC","NIC","NIC",false]
[263,null,null,null,"NIC","NIC","NIC","NIC",false]
[264,null,null,null,"NIC","NIC","NIC","NIC",false]
[265,null,null,null,"NIC","NIC","NIC","NIC",false]
[266,null,null,null,"NIC","NIC","NIC","NIC",false]
[267,null,null,null,"NIC","NIC","NIC","NIC",false]
[268,null,null,null,"NIC","NIC","NIC","NIC",false]
[269,null,null,null,"NIC","NIC","NIC","NIC",false]
[270,null,null,null,"NIC","NIC","NIC","NIC",false]
[271,null,null,null,"NIC","NIC","NIC","NIC",false]
[272,null,null,null,"NIC","NIC","NIC","NIC",false]
[273,null,null,null,"NIC","NIC","NIC","NIC",false]
[274,null,null,null,"NIC","NIC","NIC","NIC",false]
[275,null,null,null,"NIC","NIC","NIC","NIC",false]
[276,null,null,null,"NIC","NIC","NIC","NIC",false]
[277,null,null,null,"NIC","NIC","NIC","NIC",false]
[278,null,null,null,"NIC","NIC","NIC","NIC",false]
[279,null,null,null,"NIC","NIC","NIC","NIC",false]
[280,null,null,null,"NIC","NIC","NIC","NIC",false]
[281,null,null,null,"NIC","NIC","NIC","NIC",false]
[282,null,null,null,"NIC","NIC","NIC","NIC",false]
[283,null,null,null,"NIC","NIC","NIC","NIC",false]
[284,null,null,null,"NIC","NIC","NIC","NIC",false]
[285,null,null,null,"NIC","NIC","NIC","NIC",false]
[286,null,null,null,"NIC","NIC","NIC","NIC",false]
[287,null,null,null,"NIC","NIC","NIC","NIC",false]
[288,null,null,null,"NIC","NIC","NIC","NIC",false]
[289,null,null,null,"NIC","NIC","NIC","NIC",false]
[290,null,null,null,"NIC","NIC","NIC","NIC",false]
[291,null,null,null,"NIC","NIC","NIC","NIC",false]
[292,null,null,null,"NIC","NIC","NIC","NIC",false]
[293,null,null,null,"NIC","NIC","NIC","NIC",false]
[294,null,null,null,"NIC","NIC","NIC","NIC",false]
[295,null,null,null,"NIC","NIC","NIC","NIC",false]
[296,null,null,null,"NIC","NIC","NIC","NIC",false]
[297,null,null,null,"NIC","NIC","NIC","NIC",false]
[298,null,null,null,"NIC","NIC","NIC","NIC",false]
[299,null,null,null,"NIC","NIC","NIC","NIC",false]
[300,null,null,null,"NIC","NIC","NIC","NIC",false]
[301,null,null,null,"NIC","NIC","NIC","NIC",false]
[302,null,null,null,"NIC","NIC","NIC","NIC",false]
[303,null,null,null,"NIC","NIC","NIC","NIC",false]
[304,null,null,null,"NIC","NIC","NIC","NIC",false]
[305,null,null,null,"NIC","NIC","NIC","NIC",false]
[306,null,null,null,"NIC","NIC","NIC","NIC",false]
[307,null,null,null,"NIC","NIC","NIC","NIC",false]
[308,null,null,null,"NIC","NIC","NIC","NIC",false]
[309,null,null,null,"NIC","NIC","NIC","NIC",false]
[310,null,null,null,"NIC","NIC","NIC","NIC",false]
[311,null,null,null,"NIC","NIC","NIC","NIC",false]
[312,null,null,null,"NIC","NIC","NIC","NIC",false]
[313,null,null,null,"NIC","NIC","NIC","NIC",false]
[314,null,null,null,"NIC","NIC","NIC","NIC",false]
[315,null,null,null,"NIC","NIC","NIC","NIC",false]
[316,null,null,null,"NIC","NIC","NIC","NIC",false]
[317,null,null,null,"NIC","NIC","NIC","NIC",false]
[318,null,null,null,"NIC","NIC","NIC","NIC",false]
[319,null,null,null,"NIC","NIC","NIC","NIC",false]
[320,null,null,null,"NIC","NIC","NIC","NIC",false]
[321,null,null,null,"NIC","NIC","NIC","NIC",false]
[322,null,null,null,{"$f":"CHOOSE((IFERROR(SEARCH(\"NSTD\",C323),0)>0)+(IFERROR(SEARCH(\"Nestan\",C323),0)>0)+1,\"NIC\",\"NSTD\",\"NSTD2\")","v":"NIC"},"NIC",{"$f":"CHOOSE((IFERROR(SEARCH(\"Prodej\",C323),0)>0)+1,\"NIC\",\"Prodej\")","v":"NIC"},"NIC",{"$f":"OR(\"NSTD\"=E323,\"NSTD\"=F323,\"Prodej\"=G323,\"Prodej\"=H323)","v":false}]
[323,null,null,null,"NIC","NIC","NIC","NIC",false]
[324,null,null,null,"NIC","NIC","NIC","NIC",false]
[325,null,null,null,"NIC","NIC","NIC","NIC",false]
[326,null,null,null,"NIC","NIC","NIC","NIC",false]
[327,null,null,null,"NIC","NIC","NIC","NIC",false]
[328,null,null,null,"NIC","NIC","NIC","NIC",false]
[329,null,null,null,"NIC","NIC","NIC","NIC",false]
[330,null,null,null,"NIC","NIC","NIC","NIC",false]
[331,null,null,null,"NIC","NIC","NIC","NIC",false]
[332,null,null,null,"NIC","NIC","NIC","NIC",false]
[333,null,null,null,"NIC","NIC","NIC","NIC",false]
[334,null,null,null,"NIC","NIC","NIC","NIC",false]
[335,null,null,null,"NIC","NIC","NIC","NIC",false]
[336,null,null,null,"NIC","NIC","NIC","NIC",false]
[337,null,null,null,"NIC","NIC","NIC","NIC",false]
[338,null,null,null,"NIC","NIC","NIC","NIC",false]
[339,null,null,null,"NIC","NIC","NIC","NIC",false]
[340,null,null,null,"NIC","NIC","NIC","NIC",false]
[341,null,null,null,"NIC","NIC","NIC","NIC",false]
[342,null,null,null,"NIC","NIC","NIC","NIC",false]
[343,null,null,null,"NIC","NIC","NIC","NIC",false]
[344,null,null,null,"NIC","NIC","NIC","NIC",false]
[345,null,null,null,"NIC","NIC","NIC","NIC",false]
[346,null,null,null,"NIC","NIC","NIC","NIC",false]
[347,null,null,null,"NIC","NIC","NIC","NIC",false]
[348,null,null,null,"NIC","NIC","NIC","NIC",false]
[349,null,null,null,"NIC","NIC","NIC","NIC",false]
[350,null,null,null,"NIC","NIC","NIC","NIC",false]
[351,null,null,null,"NIC","NIC","NIC","NIC",false]
[352,null,null,null,"NIC","NIC","NIC","NIC",false]
[353,null,null,null,"NIC","NIC","NIC","NIC",false]
[354,null,null,null,"NIC","NIC","NIC","NIC",false]
[355,null,null,null,"NIC","NIC","NIC","NIC",false]
[356,null,null,null,"NIC","NIC","NIC","NIC",false]
[357,null,null,null,"NIC","NIC","NIC","NIC",false]
[358,null,null,null,"NIC","NIC","NIC","NIC",false]
[359,null,null,null,"NIC","NIC","NIC","NIC",false]
[360,null,null,null,"NIC","NIC","NIC","NIC",false]
[361,null,null,null,"NIC","NIC","NIC","NIC",false]
[362,null,null,null,"NIC","NIC","NIC","NIC",false]
[363,null,null,null,"NIC","NIC","NIC","NIC",false]
[364,null,null,null,"NIC","NIC","NIC","NIC",false]
[365,null,null,null,"NIC","NIC","NIC","NIC",false]
[366,null,null,null,"NIC","NIC","NIC","NIC",false]
[367,null,null,null,"NIC","NIC","NIC","NIC",false]
[368,null,null,null,"NIC","NIC","NIC","NIC",false]
[369,null,null,null,"NIC","NIC","NIC","NIC",false]
[370,null,null,null,"NIC","NIC","NIC","NIC",false]
[371,null,null,null,"NIC","NIC","NIC","NIC",false]
[372,null,null,null,"NIC","NIC","NIC","NIC",false]
[373,null,null,null,"NIC","NIC","NIC","NIC",false]
[374,null,null,null,"NIC","NIC","NIC","NIC",false]
[375,null,null,null,"NIC","NIC","NIC","NIC",false]
[376,null,null,null,"NIC","NIC","NIC","NIC",false]
[377,null,null,null,"NIC","NIC","NIC","NIC",false]
[378,null,null,null,"NIC","NIC","NIC","NIC",false]
[379,null,null,null,"NIC","NIC","NIC","NIC",false]
[380,null,null,null,"NIC","NIC","NIC","NIC",false]
[381,null,null,null,"NIC","NIC","NIC","NIC",false]
[382,null,null,null,"NIC","NIC","NIC","NIC",false]
[383,null,null,null,"NIC","NIC","NIC","NIC",false]
[384,null,null,null,"NIC","NIC","NIC","NIC",false]
[385,null,null,null,"NIC","NIC","NIC","NIC",false]
[386,null,null,null,{"$f":"CHOOSE((IFERROR(SEARCH(\"NSTD\",C387),0)>0)+(IFERROR(SEARCH(\"Nestan\",C387),0)>0)+1,\"NIC\",\"NSTD\",\"NSTD2\")","v":"NIC"},"NIC",{"$f":"CHOOSE((IFERROR(SEARCH(\"Prodej\",C387),0)>0)+1,\"NIC\",\"Prodej\")","v":"NIC"},"NIC",{"$f":"OR(\"NSTD\"=E387,\"NSTD\"=F387,\"Prodej\"=G387,\"Prodej\"=H387)","v":false}]
[387,null,null,null,"NIC","NIC","NIC","NIC",false]
[388,null,null,null,"NIC","NIC","NIC","NIC",false]
[389,null,null,null,"NIC","NIC","NIC","NIC",false]
[390,null,null,null,"NIC","NIC","NIC","NIC",false]
[391,null,null,null,"NIC","NIC","NIC","NIC",false]
[392,null,null,null,"NIC","NIC","NIC","NIC",false]
[393,null,null,null,"NIC","NIC","NIC","NIC",false]
[394,null,null,null,"NIC","NIC","NIC","NIC",false]
[395,null,null,null,"NIC","NIC","NIC","NIC",false]
[396,null,null,null,"NIC","NIC","NIC","NIC",false]
[397,null,null,null,"NIC","NIC","NIC","NIC",false]
[398,null,null,null,"NIC","NIC","NIC","NIC",false]
[399,null,null,null,"NIC","NIC","NIC","NIC",false]
[400,null,null,null,"NIC","NIC","NIC","NIC",false]
[401,null,null,null,"NIC","NIC","NIC","NIC",false]
[402,null,null,null,"NIC","NIC","NIC","NIC",false]
[403,null,null,null,"NIC","NIC","NIC","NIC",false]
[404,null,null,null,"NIC","NIC","NIC","NIC",false]
[405,null,null,null,"NIC","NIC","NIC","NIC",false]
[406,null,null,null,"NIC","NIC","NIC","NIC",false]
[407,null,null,null,"NIC","NIC","NIC","NIC",false]
[408,null,null,null,"NIC","NIC","NIC","NIC",false]
[409,null,null,null,"NIC","NIC","NIC","NIC",false]
[410,null,null,null,"NIC","NIC","NIC","NIC",false]
[411,null,null,null,"NIC","NIC","NIC","NIC",false]
[412,null,null,null,"NIC","NIC","NIC","NIC",false]
[413,null,null,null,"NIC","NIC","NIC","NIC",false]
[414,null,null,null,"NIC","NIC","NIC","NIC",false]
[415,null,null,null,"NIC","NIC","NIC","NIC",false]
[416,null,null,null,"NIC","NIC","NIC","NIC",false]
[417,null,null,null,"NIC","NIC","NIC","NIC",false]
[418,null,null,null,"NIC","NIC","NIC","NIC",false]
[419,null,null,null,"NIC","NIC","NIC","NIC",false]
[420,null,null,null,"NIC","NIC","NIC","NIC",false]
[421,null,null,null,"NIC","NIC","NIC","NIC",false]
[422,null,null,null,"NIC","NIC","NIC","NIC",false]
[423,null,null,null,"NIC","NIC","NIC","NIC",false]
[424,null,null,null,"NIC","NIC","NIC","NIC",false]
[425,null,null,null,"NIC","NIC","NIC","NIC",false]
[426,null,null,null,"NIC","NIC","NIC","NIC",false]
[427,null,null,null,"NIC","NIC","NIC","NIC",false]
[428,null,null,null,"NIC","NIC","NIC","NIC",false]
[429,null,null,null,"NIC","NIC","NIC","NIC",false]
[430,null,null,null,"NIC","NIC","NIC","NIC",false]
[431,null,null,null,"NIC","NIC","NIC","NIC",false]
[432,null,null,null,"NIC","NIC","NIC","NIC",false]
[433,null,null,null,"NIC","NIC","NIC","NIC",false]
[434,null,null,null,"NIC","NIC","NIC","NIC",false]
[435,null,null,null,"NIC","NIC","NIC","NIC",false]
[436,null,null,null,"NIC","NIC","NIC","NIC",false]
[437,null,null,null,"NIC","NIC","NIC","NIC",false]
[438,null,null,null,"NIC","NIC","NIC","NIC",false]
[439,null,null,null,"NIC","NIC","NIC","NIC",false]
[440,null,null,null,"NIC","NIC","NIC","NIC",false]
[441,null,null,null,"NIC","NIC","NIC","NIC",false]
[442,null,null,null,"NIC","NIC","NIC","NIC",false]
[443,null,null,null,"NIC","NIC","NIC","NIC",false]
[444,null,null,null,"NIC","NIC","NIC","NIC",false]
[445,null,null,null,"NIC","NIC","NIC","NIC",false]
[446,null,null,null,"NIC","NIC","NIC","NIC",false]
[447,null,null,null,"NIC","NIC","NIC","NIC",false]
[448,null,null,null,"NIC","NIC","NIC","NIC",false]
[449,null,null,null,"NIC","NIC","NIC","NIC",false]
[450,null,null,null,{"$f":"CHOOSE((IFERROR(SEARCH(\"NSTD\",C451),0)>0)+(IFERROR(SEARCH(\"Nestan\",C451),0)>0)+1,\"NIC\",\"NSTD\",\"NSTD2\")","v":"NIC"},"NIC",{"$f":"CHOOSE((IFERROR(SEARCH(\"Prodej\",C451),0)>0)+1,\"NIC\",\"Prodej\")","v":"NIC"},"NIC",{"$f":"OR(\"NSTD\"=E451,\"NSTD\"=F451,\"Prodej\"=G451,\"Prodej\"=H451)","v":false}]
[451,null,null,null,"NIC","NIC","NIC","NIC",false]
[452,null,null,null,"NIC","NIC","NIC","NIC",false]
[453,null,null,null,"NIC","NIC","NIC","NIC",false]
[454,null,null,null,"NIC","NIC","NIC","NIC",false]
[455,null,null,null,"NIC","NIC","NIC","NIC",false]
[456,null,null,null,"NIC","NIC","NIC","NIC",false]
[457,null,null,null,"NIC","NIC","NIC","NIC",false]
[458,null,null,null,"NIC","NIC","NIC","NIC",false]
[459,null,null,null,"NIC","NIC","NIC","NIC",false]
[460,null,null,null,"NIC","NIC","NIC","NIC",false]
[461,null,null,null,"NIC","NIC","NIC","NIC",false]
[462,null,null,null,"NIC","NIC","NIC","NIC",false]
[463,null,null,null,"NIC","NIC","NIC","NIC",false]
[464,null,null,null,"NIC","NIC","NIC","NIC",false]
[465,null,null,null,"NIC","NIC","NIC","NIC",false]
[466,null,null,null,"NIC","NIC","NIC","NIC",false]
[467,null,null,null,"NIC","NIC","NIC","NIC",false]
[468,null,null,null,"NIC","NIC","NIC","NIC",false]
[469,null,null,null,"NIC","NIC","NIC","NIC",false]
[470,null,null,null,"NIC","NIC","NIC","NIC",false]
[471,null,null,null,"NIC","NIC","NIC","NIC",false]
[472,null,null,null,"NIC","NIC","NIC","NIC",false]
[473,null,null,null,"NIC","NIC","NIC","NIC",false]
[474,null,null,null,"NIC","NIC","NIC","NIC",false]
[475,null,null,null,"NIC","NIC","NIC","NIC",false]
[476,null,null,null,"NIC","NIC","NIC","NIC",false]
[477,null,null,null,"NIC","NIC","NIC","NIC",false]
[478,null,null,null,"NIC","NIC","NIC","NIC",false]
[479,null,null,null,"NIC","NIC","NIC","NIC",false]
[480,null,null,null,"NIC","NIC","NIC","NIC",false]
[481,null,null,null,"NIC","NIC","NIC","NIC",false]
[482,null,null,null,"NIC","NIC","NIC","NIC",false]
[483,null,null,null,"NIC","NIC","NIC","NIC",false]
[484,null,null,null,"NIC","NIC","NIC","NIC",false]
[485,null,null,null,"NIC","NIC","NIC","NIC",false]
[486,null,null,null,"NIC","NIC","NIC","NIC",false]
[487,null,null,null,"NIC","NIC","NIC","NIC",false]
[488,null,null,null,"NIC","NIC","NIC","NIC",false]
[489,null,null,null,"NIC","NIC","NIC","NIC",false]
[490,null,null,null,"NIC","NIC","NIC","NIC",false]
[491,null,null,null,"NIC","NIC","NIC","NIC",false]
[492,null,null,null,"NIC","NIC","NIC","NIC",false]
[493,null,null,null,"NIC","NIC","NIC","NIC",false]
[494,null,null,null,"NIC","NIC","NIC","NIC",false]
[495,null,null,null,"NIC","NIC","NIC","NIC",false]
[496,null,null,null,"NIC","NIC","NIC","NIC",false]
[497,null,null,null,"NIC","NIC","NIC","NIC",false]
[498,null,null,null,"NIC","NIC","NIC","NIC",false]
[499,null,null,null,"NIC","NIC","NIC","NIC",false]
[500,null,null,null,"NIC","NIC","NIC","NIC",false]

{"sheet":"Pomocná","index":6,"n_rows":49,"n_cols":2,"rows_kept":49,"cut":false,"hidden":false,"merged":[]}
["Blansko ","Blansko "]
["Brno-Bystrc ","Brno"]
["Brno-Jundrov ","Brno"]
["Brno-Nový Lískovec ","Brno"]
["Brno-Řečkovice ","Brno"]
["Brno-Staré Brno ","Brno"]
["Brno-Štýřice ","Brno"]
["Brno-Žebětín ","Brno"]
["Jindřichův Hradec III ","J.Hradec"]
["Kladno ","Kladno"]
["Kralupy Nad Vltavou ","Kralupy Nad Vltavou "]
["Kralupy Nad Vltavou-Lobeček ","Kralupy Nad Vltavou "]
["Libeř","Libeř"]
["Praha 1 - Centrum ","Praha 1"]
["Praha 10-Dolní Měcholupy ","Praha 10"]
["Praha 10-Horní Měcholupy ","Praha 10"]
["Praha 10-Hostivař ","Praha 10"]
["Praha 10-Malešice ","Praha 10"]
["Praha 10-Michle ","Praha 10"]
["Praha 10-Petrovice ","Praha 10"]
["Praha 10-Strašnice ","Praha 10"]
["Praha 10-Vinohrady ","Praha 10"]
["Praha 10-Vršovice ","Praha 10"]
["Praha 10-Záběhlice ","Praha 10"]
["Praha 1-Nové Město ","Praha 1"]
["Praha 2-Nové Město ","Praha 2"]
["Praha 2-Nusle ","Praha 2"]
["Praha 2-Vinohrady ","Praha 2"]
["Praha 2-Vyšehrad","Praha 2"]
["Praha 3-Strašnice ","Praha 3"]
["Praha 3-Vinohrady ","Praha 3"]
["Praha 3-Žižkov ","Praha 3"]
["Praha 4-Háje ","Praha 4"]
["Praha 4-Chodov ","Praha 4"]
["Praha 4-Nusle ","Praha 4"]
["Praha 6-Bubeneč ","Praha 6"]
["Praha 6-Dejvice ","Praha 6"]
["Praha 7-Holešovice ","Praha 6"]
["Praha 8-Bohnice ","Praha 8"]
["Praha 9-Černý Most ","Praha 9"]
["Praha 9-Dolní Počernice","Praha 9"]
["Praha 9-Hloubětín ","Praha 9"]
["Praha 9-Horní Počernice ","Praha 9"]
["Praha 9-Kyje ","Praha 9"]
["Praha 9-Prosek ","Praha 9"]
["Praha 9-Střížkov ","Praha 9"]
["Praha 9-Vysočany ","Praha 9"]
["Praha 9-Újezd Nad Lesy ","Praha 9"]
["Praha 9-Hostavice ","Praha 9"]